Workbook

Sheet Description of columns
A1: This list describes the column headings in the main "Measures" sheet
A3: Column letter | B3: Column heading | C3: Description
A4: A | B4: Identification number | C4: Unique identifier per line
A5: B | B5: Country | C5: 3-letter country code
A6: C | B6: Type of measure | C6: Categorisatioin of policy type
A7: D | B7: Scope | C7: Economy-wide, sectoral, sub-national etc
A8: E | B8: Sector | C8: Which sector(s) covered
A9: F | B9: Value of measure (USD or specify) | C9: Total value of funding announced (if applicable)
A10: G | B10: Infrastructure relevant? | C10: Relevant to infrastructure or not
A11: H | B11: Environmental dimension 1 | C11: Up to three environmental dimensions potentially affected by the measure (positively or negatively)
A12: I | B12: Environmental dimension 2
A13: J | B13: Environmental dimension 3
A14: K | B14: Summary description | C14: Description of measure
A15: L | B15: Source | C15: Online source for data
A16: M | B16: Source 2
A17: N | B17: Comments
A18: O | B18: Updated on | C18: Date that the entry was last updated
A19: P | B19: Original currency | C19: Currency conversion fields
A20: Q | B20: Original value (million)
A21: R | B21: Convert to USD millions

Sheet Measures
A1: Identification number | B1: Country | C1: Type of measure | D1: Scope | E1: Sector | F1: Value of measure (USD or specify) | G1: Environmental dimension 1 | H1: Environmental dimension 2 | I1: Environmental dimension 3 | J1: Summary description | K1: Source 1 | L1: Source 2 | M1: Environmental impact category | N1: Comments | O1: Updated on | P1: Million original currency | Q1: Million original currency | R1: Convert to USD millions | S1: Country comments/ Revisions
A2: AUS1 | B2: AUS | C2: Grant/Loan (including interest-free loans) | D2: Sectoral | E2: Air transport | F2: AUD 100m | G2: Climate Mitigation | J2: Regional Airlines Funding Assistance - assist smaller regional domestic air service providers to help manage cash flow issues they may be experiencing as a result of the mpacts of the Coronavirus. | K2: https://treasury.gov.au/sites/default/files/2020-07/Fact_Sheet-COVID-19_Relief_Fund.pdf | M2: Negative | P2: AUD | Q2: 100 | R2: =IFERROR(Q2/VLOOKUP(P2,'Exchange rates to USD'!$L$2:$N$225,3,FALSE()),"") -> 70.70210326
A3: AUS2 | B3: AUS | C3: Grant/Loan (including interest-free loans) | D3: Sectoral | E3: Air transport | F3: AUD 198m | G3: Climate Mitigation | J3: Regional Network Air Assistance - to assist domestic commercial airlines to maintain a basic level of connectivity across their network of regional routes. This is supporting critical air services, connecting regional Australia to freight, medical testing, supplies and essential personnel. | K3: https://treasury.gov.au/sites/default/files/2020-07/Fact_Sheet-COVID-19_Relief_Fund.pdf | M3: Indeterminate | P3: AUD | Q3: 198 | R3: =IFERROR(Q3/VLOOKUP(P3,'Exchange rates to USD'!$L$2:$N$225,3,FALSE()),"") -> 139.9901645
A4: AUS3 | B4: AUS | C4: Grant/Loan (including interest-free loans) | D4: Sectoral | E4: Air transport | F4: AUD 110m | G4: Climate Mitigation | J4: Airfreight Support - an International Freight Assistance Mechanism (IFAM) to keep open key international freight links with trading partners for goods coming into and going out of Australia. IFAM will support the efforts of businesses trading internationally, including in the agricultural, seafood and healthcare sectors, to re-establish key global supply chains, which have been disrupted by the Coronavirus, supporting the international economic recovery. | K4: https://treasury.gov.au/sites/default/files/2020-07/Fact_Sheet-COVID-19_Relief_Fund.pdf | M4: Negative | P4: AUD | Q4: 110 | R4: =IFERROR(Q4/VLOOKUP(P4,'Exchange rates to USD'!$L$2:$N$225,3,FALSE()),"") -> 77.77231359
A5: AUS4 | B5: AUS | C5: Tax reduction / Other subsidy | D5: Sectoral | E5: Multiple or economy-wide | G5: Biodiversity | J5: Levy Relief from Commonwealth Fisheries - The Australian Government is waiving the final two instalments of levies for Commonwealth managed fisheries, reducing levies for the 2019-20 financial year by two thirds. No estimate of revenue foregone provided | K5: https://treasury.gov.au/sites/default/files/2020-07/Fact_Sheet-COVID-19_Relief_Fund.pdf | M5: Indeterminate | R5: =IFERROR(Q5/VLOOKUP(P5,'Exchange rates to USD'!$L$2:$N$225,3,FALSE()),"") -> 
A6: AUS5 | B6: AUS | C6: Tax reduction / Other subsidy | D6: Economy-wide | E6: Multiple or economy-wide | F6: AUD 12m | G6: Biodiversity | J6: Fee Waivers for Commonwealth National Parks plus support for businesses operating in Commonwealth National Parks | K6: https://treasury.gov.au/sites/default/files/2020-07/Fact_Sheet-COVID-19_Relief_Fund.pdf | M6: Indeterminate | P6: AUD | Q6: 12 | R6: =IFERROR(Q6/VLOOKUP(P6,'Exchange rates to USD'!$L$2:$N$225,3,FALSE()),"") -> 8.484252391
A7: AUS6 | B7: AUS | C7: Tax reduction / Other subsidy | D7: Sectoral | E7: Multiple or economy-wide | F7: AUD 8.1m | G7: Biodiversity | J7: Temporary waiver of environmental management change in the Great Barrier Reef Marine Park | K7: https://treasury.gov.au/sites/default/files/2020-07/Fact_Sheet-COVID-19_Relief_Fund.pdf | M7: Negative | P7: AUD | Q7: 8.1 | R7: =IFERROR(Q7/VLOOKUP(P7,'Exchange rates to USD'!$L$2:$N$225,3,FALSE()),"") -> 5.726870364
A8: AUS7 | B8: AUS | C8: Grant/Loan (including interest-free loans) | D8: Sectoral | E8: Multiple or economy-wide | F8: AUD 4m | G8: Biodiversity | J8: Seafood Sector COVID-19 Support - "Eat Seafood Australia" Campaign | K8: https://treasury.gov.au/sites/default/files/2020-07/Fact_Sheet-COVID-19_Relief_Fund.pdf | M8: Indeterminate | P8: AUD | Q8: 4 | R8: =IFERROR(Q8/VLOOKUP(P8,'Exchange rates to USD'!$L$2:$N$225,3,FALSE()),"") -> 2.82808413
A9: AUS8 | B9: AUS | C9: Grant/Loan (including interest-free loans) | D9: Sectoral | E9: Industry | F9: AUD 10m | G9: Biodiversity | J9: Securing forestry resources for economic recovery - funding to Australia’s forestry industries to help manage the compounding effects of the Coronavirus crisis and the 2019-20 bushfire season. This initiative will safeguard the future timber supply by assisting with the storage of fire-affected salvage logs, processed timber products, and other forestry products. | K9: https://treasury.gov.au/sites/default/files/2020-07/Fact_Sheet-COVID-19_Relief_Fund.pdf | M9: Positive | P9: AUD | Q9: 10 | R9: =IFERROR(Q9/VLOOKUP(P9,'Exchange rates to USD'!$L$2:$N$225,3,FALSE()),"") -> 7.070210326
A10: AUS9 | B10: AUS | C10: Tax reduction / Other subsidy | D10: Sectoral | E10: Energy | G10: Waste & recycling | H10: Water | J10: Temporary oil recycling sector support - temporarily increases the subsidy paid to oil recyclers under the Product Stewardship Oil Scheme for category one oil from 50 cents per litre to 62 cents per litre. The Australian Government established the Product Stewardship Oil Scheme in 2001 to address the mismanagement of unconsumed used oils. The Australian Government pays a benefit to oil recyclers to incentivise the collection and re-refinement of waste oil. No estimate of subsidy provided. | K10: https://treasury.gov.au/sites/default/files/2020-07/Fact_Sheet-COVID-19_Relief_Fund.pdf | M10: Positive | R10: =IFERROR(Q10/VLOOKUP(P10,'Exchange rates to USD'!$L$2:$N$225,3,FALSE()),"") -> 
A11: AUS10 | B11: AUS | C11: Grant/Loan (including interest-free loans) | D11: Sectoral | E11: Air transport | F11: AUD 715m | G11: Climate Mitigation | J11: Support for Australian Airlines and Airports - The Government will provide initial support to our airline industry through an estimated $715 million package of relief from a range of taxes and Government charges. This will include reimbursement of aviation fuel taxes, relief of Airservices Australia charges, rebate for Domestic Aviation Security, funding Regional Aviation Security. | K11: https://treasury.gov.au/sites/default/files/2020-03/Fact_sheet-Assistance_for_severely_affected_regions_and_sectors.pdf | M11: Negative | P11: AUD | Q11: 715 | R11: =IFERROR(Q11/VLOOKUP(P11,'Exchange rates to USD'!$L$2:$N$225,3,FALSE()),"") -> 505.5200383
A12: AUS11 | B12: AUS | C12: Grant/Loan (including interest-free loans) | D12: Economy-wide | E12: Multiple or economy-wide | F12: AUD 1 billion | G12: Other | J12: Support for Coronavirus-affected Regions, Communities and Industries | K12: https://treasury.gov.au/sites/default/files/2020-03/Fact_sheet-Assistance_for_severely_affected_regions_and_sectors.pdf | M12: Indeterminate | P12: AUD | Q12: 1000 | R12: =IFERROR(Q12/VLOOKUP(P12,'Exchange rates to USD'!$L$2:$N$225,3,FALSE()),"") -> 707.0210326
A13: AUS12 | B13: AUS | C13: Grant/Loan (including interest-free loans) | D13: City/regional | E13: Multiple or economy-wide | F13: AUD 51.8 billion | G13: Climate Mitigation | H13: Air Pollution | I13: Other | J13: Infrastructure guarantee fund - maintaining the current State infrastructure investment program at $51.8 billion over the next four years 2019-20 to 2022-23 | K13: https://www.covid19.qld.gov.au/government-actions/our-economic-recovery-strategy | M13: Mixed | P13: AUD | Q13: 51800 | R13: =IFERROR(Q13/VLOOKUP(P13,'Exchange rates to USD'!$L$2:$N$225,3,FALSE()),"") -> 36623.68949
A14: AUS13 | B14: AUS | C14: Grant/Loan (including interest-free loans) | D14: Sector-specific | E14: Buildings | G14: Biodiversity | J14: HomeBuilder provides eligible owner-occupiers (including first home buyers) with a grant to build a new home or substantially renovate an existing home. HomeBuilder assists the residential construction sector by encouraging the commencement of new home builds and renovations. | K14: https://treasury.gov.au/coronavirus/homebuilder | L14: https://treasury.gov.au/sites/default/files/2020-12/HomeBuilder_extension_factsheet.pdf | M14: Indeterminate | O14: 2021-03-05 | S14: changed dimension from biodiversity to climate. Change impact to mixed/No Infrast. relevant? The measure is expected to have an impact of AUD 921 million
A15: AUS14 | B15: AUS | C15: Regulatory change | D15: Sector-specific | E15: Agriculture | F15: AUD 14.4m | G15: Other | J15: Improving Regulation post-COVID-19 including Targeted Interventions for Seafood and Live Animal Exporters | K15: https://www.awe.gov.au/sites/default/files/2020-10/budget-2020-21_cultivating-profitable-and-resilient-agricultural-businesses.pdf | M15: Indeterminate | O15: 2021-04-08 | P15: AUD | Q15: 14.4 | R15: =IFERROR(Q15/VLOOKUP(P15,'Exchange rates to USD'!$L$2:$N$225,3,FALSE()),"") -> 10.18110287
A16: AUS15 | B16: AUS | C16: Other | D16: Sector-specific | E16: Buildings | F16: AUD 40.6m | G16: Biodiversity | J16: Protecting and restoring Sydney Harbour Federation Trust properties | K16: https://www.awe.gov.au/sites/default/files/2020-10/budget-2020-21_protecting-our-iconic-places.pdf | M16: Indeterminate | O16: 2021-04-08 | P16: AUD | Q16: 40.6 | R16: =IFERROR(Q16/VLOOKUP(P16,'Exchange rates to USD'!$L$2:$N$225,3,FALSE()),"") -> 28.70505392
A17: AUS16 | B17: AUS | C17: Grant/Loan (including interest-free loans) | D17: Sector-specific | E17: Multiple or economy-wide | F17: AUD 3.2m | G17: Biodiversity | H17: Water | J17: Great Barrier Reef tourism industry activation and reef protection, maintenance and monitoring. | K17: https://www.awe.gov.au/sites/default/files/2020-10/budget-2020-21_protecting-our-iconic-places.pdf | M17: Indeterminate | O17: 2021-04-08 | P17: AUD | Q17: 3.2 | R17: =IFERROR(Q17/VLOOKUP(P17,'Exchange rates to USD'!$L$2:$N$225,3,FALSE()),"") -> 2.262467304
A18: AUS17 | B18: AUS | C18: Grant/Loan (including interest-free loans) | D18: Sector-specific | E18: Multiple or economy-wide | F18: AUD 5.5m | G18: Other | H18: Biodiversity | J18: Supplementing GBRMPA for waiving environmental management charges | K18: https://www.awe.gov.au/sites/default/files/2020-10/budget-2020-21_protecting-our-iconic-places.pdf | M18: Indeterminate | O18: 2021-04-08 | P18: AUD | Q18: 5.5 | R18: =IFERROR(Q18/VLOOKUP(P18,'Exchange rates to USD'!$L$2:$N$225,3,FALSE()),"") -> 3.888615679
A19: AUS18 | B19: AUS | C19: Tax reduction / other subsidy | D19: Sector-specific | E19: Multiple or economy-wide | F19: AUD 6m | G19: Other | H19: Biodiversity | J19: Extending waiver of the GBRMPA Environment Management Charge | K19: https://www.awe.gov.au/sites/default/files/2020-10/budget-2020-21_protecting-our-iconic-places.pdf | M19: Indeterminate | O19: 2021-04-08 | P19: AUD | Q19: 6 | R19: =IFERROR(Q19/VLOOKUP(P19,'Exchange rates to USD'!$L$2:$N$225,3,FALSE()),"") -> 4.242126196
A20: AUS19 | B20: AUS | C20: Grant/Loan (including interest-free loans) | D20: Sector-specific | E20: Multiple or economy-wide | F20: AUD 11.2m | G20: Other | H20: Biodiversity | J20: Supplementing our National Parks for waiving park entry fees to Kakadu, Uluru Kata-Tjuta and Booderee, to provide incentives for travellers to visit after restrictions relax | K20: https://www.awe.gov.au/sites/default/files/2020-10/budget-2020-21_protecting-our-iconic-places.pdf | M20: Indeterminate | O20: 2021-04-08 | P20: AUD | Q20: 11.2 | R20: =IFERROR(Q20/VLOOKUP(P20,'Exchange rates to USD'!$L$2:$N$225,3,FALSE()),"") -> 7.918635565
A21: AUS20 | B21: AUS | C21: Grant/Loan (including interest-free loans) | D21: Sector-specific | E21: Multiple or economy-wide | F21: AUD 5m | G21: Other | J21: Support critical capital works and capital projects to refurbish and replace external structures at Reef HQ. | K21: https://www.infrastructure.gov.au/department/statements/2020_2021/ministerial-statement/agriculture-water-environment.aspx#new | M21: Positive | O21: 2021-04-08 | P21: AUD | Q21: 5 | R21: =IFERROR(Q21/VLOOKUP(P21,'Exchange rates to USD'!$L$2:$N$225,3,FALSE()),"") -> 3.535105163
A22: AUS21 | B22: AUS | C22: Other | D22: Sector-specific | E22: Waste management | F22: AUD 59.6m | G22: Waste & recycling | J22: National Waste Policy Action Plan implementation | K22: https://www.awe.gov.au/sites/default/files/2020-10/budget-2020-21_transforming-waste-recycling.pdf | M22: Positive | O22: 2021-04-08 | P22: AUD | Q22: 59.6 | R22: =IFERROR(Q22/VLOOKUP(P22,'Exchange rates to USD'!$L$2:$N$225,3,FALSE()),"") -> 42.13845354
A23: AUS22 | B23: AUS | C23: Other | D23: Sector-specific | E23: Waste management | F23: AUD 190m | G23: Waste & recycling | J23: Recycling Modernisation Fund - will support waste recovery and combined with the National Waste Policy Action Plan will create over 10,000 jobs over the next 10 years. | K23: https://www.awe.gov.au/sites/default/files/2020-10/budget-2020-21_transforming-waste-recycling.pdf | M23: Positive | O23: 2021-04-08 | P23: AUD | Q23: 190 | R23: =IFERROR(Q23/VLOOKUP(P23,'Exchange rates to USD'!$L$2:$N$225,3,FALSE()),"") -> 134.3339962
A24: AUS23 | B24: AUS | C24: Other | D24: Sector-specific | E24: Multiple or economy-wide | F24: AUD 2.5m | G24: Biodiversity | H24: Adaptation | J24: Exploring market-based solutions for habitat restoration | K24: https://www.awe.gov.au/sites/default/files/2020-10/budget-2020-21_reforming-environmental-laws-regulations_0.pdf | M24: Positive | O24: 2021-04-08 | P24: AUD | Q24: 2.5 | R24: =IFERROR(Q24/VLOOKUP(P24,'Exchange rates to USD'!$L$2:$N$225,3,FALSE()),"") -> 1.767552582
A25: AUS24 | B25: AUS | C25: Grant/Loan (including interest-free loans) | D25: City/regional | E25: Multiple or economy-wide | F25: AUD 37.6m | G25: Biodiversity | H25: Water | J25: Projects that will sustain South Australia Riverland environments | K25: https://www.awe.gov.au/sites/default/files/2020-10/budget_2020-21_investing-in-communities-and-building-confidence-in-the-basin-plan.pdf | M25: Positive | O25: 2021-04-08 | P25: AUD | Q25: 37.6 | R25: =IFERROR(Q25/VLOOKUP(P25,'Exchange rates to USD'!$L$2:$N$225,3,FALSE()),"") -> 26.58399083
A26: AUS25 | B26: AUS | C26: Grant/Loan (including interest-free loans) | D26: City/regional | E26: Multiple or economy-wide | F26: AUD 24.5m | G26: Biodiversity | H26: Water | J26: Community driven projects to improve the health of rivers and wetlands | K26: https://www.awe.gov.au/sites/default/files/2020-10/budget_2020-21_investing-in-communities-and-building-confidence-in-the-basin-plan.pdf | M26: Positive | O26: 2021-04-08 | P26: AUD | Q26: 24.5 | R26: =IFERROR(Q26/VLOOKUP(P26,'Exchange rates to USD'!$L$2:$N$225,3,FALSE()),"") -> 17.3220153
A27: AUS26 | B27: AUS | C27: Other | D27: City/regional | E27: Multiple or economy-wide | F27: AUD 4.2m | G27: Biodiversity | J27: First Nations River Ranger Program | K27: https://www.awe.gov.au/sites/default/files/2020-10/budget_2020-21_investing-in-communities-and-building-confidence-in-the-basin-plan.pdf | M27: Positive | O27: 2021-04-08 | P27: AUD | Q27: 4.2 | R27: =IFERROR(Q27/VLOOKUP(P27,'Exchange rates to USD'!$L$2:$N$225,3,FALSE()),"") -> 2.969488337
A28: AUS27 | B28: AUS | C28: Other | D28: City/regional | E28: Multiple or economy-wide | F28: AUD 20m | G28: Biodiversity | H28: Water | J28: Reef builder - aiding the recovery of coastal communities | K28: https://www.awe.gov.au/sites/default/files/2020-10/budget-2020-21_supporting-healthy-oceans.pdf | M28: Positive | O28: 2021-04-08 | P28: AUD | Q28: 20 | R28: =IFERROR(Q28/VLOOKUP(P28,'Exchange rates to USD'!$L$2:$N$225,3,FALSE()),"") -> 14.14042065
A29: AUS28 | B29: AUS | C29: Skills training | D29: City/regional | E29: Multiple or economy-wide | F29: AUD 23m | G29: Biodiversity | H29: Adaptation | J29: Green jobs - Employment of people with no prior skill in environmental restoration and conservation | K29: Green Recovery Measures for Western Australia - Sustainable Recovery 2020 (iisd.org) | M29: Positive | O29: 2021-04-08 | P29: AUD | Q29: 23 | R29: =IFERROR(Q29/VLOOKUP(P29,'Exchange rates to USD'!$L$2:$N$225,3,FALSE()),"") -> 16.26148375
A30: AUS29 | B30: AUS | C30: Grant/Loan (including interest-free loans) | D30: Sector-specific | E30: Energy | F30: AUD 10m | G30: Climate Mitigation | H30: Air Pollution | J30: Investment directed towards the Clean Energy Future Fund to invest in clean energy technologies | K30: Green Recovery Measures for Western Australia - Sustainable Recovery 2020 (iisd.org) | M30: Positive | O30: 2021-04-08 | P30: AUD | Q30: 10 | R30: =IFERROR(Q30/VLOOKUP(P30,'Exchange rates to USD'!$L$2:$N$225,3,FALSE()),"") -> 7.070210326
A31: AUS30 | B31: AUS | C31: Other | D31: City/regional | E31: Energy | F31: AUD 6m | G31: Climate Mitigation | H31: Air Pollution | J31: Installation of rooftop solar PV on social housing | K31: Green Recovery Measures for Western Australia - Sustainable Recovery 2020 (iisd.org) | M31: Positive | O31: 2021-04-08 | P31: AUD | Q31: 6 | R31: =IFERROR(Q31/VLOOKUP(P31,'Exchange rates to USD'!$L$2:$N$225,3,FALSE()),"") -> 4.242126196
A32: AUS31 | B32: AUS | C32: Other | D32: City/regional | E32: Buildings | F32: AUD 13m | G32: Other | H32: Biodiversity | J32: Upgrades at Volunteer Emergency Services stations and units across Western Australia (inclusing fire and rescue services and bush fire brigades) | K32: Green Recovery Measures for Western Australia - Sustainable Recovery 2020 (iisd.org) | M32: Positive | O32: 2021-04-08 | P32: AUD | Q32: 13 | R32: =IFERROR(Q32/VLOOKUP(P32,'Exchange rates to USD'!$L$2:$N$225,3,FALSE()),"") -> 9.191273424
A33: AUS32 | B33: AUS | C33: Skills training | D33: City/regional | E33: Multiple or economy-wide | F33: AUD 5.5m | G33: Other | H33: Climate Mitigation | J33: Creating jobs in Western Australia across sectors such as renewable energy, agriculture, construction and education. | K33: Green Recovery Measures for Western Australia - Sustainable Recovery 2020 (iisd.org) | M33: Positive | O33: 2021-04-08 | P33: AUD | Q33: 5.5 | R33: =IFERROR(Q33/VLOOKUP(P33,'Exchange rates to USD'!$L$2:$N$225,3,FALSE()),"") -> 3.888615679
A34: AUS33 | B34: AUS | C34: Grant/Loan (including interest-free loans) | D34: Sector-specific | E34: Energy | F34: AUD 50m | G34: Climate Mitigation | H34: Air Pollution | J34: Carbon Capture Use and Storage Development Fund for piloting carbon capture projects to help cut emissions | K34: Investment in new energy technologies | Prime Minister of Australia (pm.gov.au) | M34: Positive | O34: 2021-04-08 | P34: AUD | Q34: 50 | R34: =IFERROR(Q34/VLOOKUP(P34,'Exchange rates to USD'!$L$2:$N$225,3,FALSE()),"") -> 35.35105163
A35: AUS34 | B35: AUS | C35: Grant/Loan (including interest-free loans) | D35: Sector-specific | E35: Energy | F35: AUD 95.4m | G35: Climate Mitigation | J35: Technology Co-Investment Fund to support agriculture, manufacturing, industrial and transport sector businesses that adopt technologies that increase energy productivity | K35: Clean Recovery: Australia to invest in future energy technology - Sustainable Recovery 2020 (iisd.org) | M35: Mixed | O35: 2021-04-08 | P35: AUD | Q35: 95 | R35: =IFERROR(Q35/VLOOKUP(P35,'Exchange rates to USD'!$L$2:$N$225,3,FALSE()),"") -> 67.1669981
A36: AUS35 | B36: AUS | C36: Other | D36: City/regional | E36: Energy | F36: AUD 67m | G36: Climate Mitigation | J36: Support for micro-grids in regional and remote communities to deliver affordable and reliable power. | K36: Clean Recovery: Australia to invest in future energy technology - Sustainable Recovery 2020 (iisd.org) | M36: Mixed | O36: 2021-04-08 | P36: AUD | Q36: 67 | R36: =IFERROR(Q36/VLOOKUP(P36,'Exchange rates to USD'!$L$2:$N$225,3,FALSE()),"") -> 47.37040918
A37: AUS36 | B37: AUS | C37: Grant/Loan (including interest-free loans) | D37: Sector-specific | E37: Energy | F37: AUD 52.2m | G37: Climate Mitigation | J37: Investments in home and business energy productivity | K37: Investment in new energy technologies | Prime Minister of Australia (pm.gov.au) | M37: Mixed | O37: 2021-04-08 | P37: AUD | Q37: 52.2 | R37: =IFERROR(Q37/VLOOKUP(P37,'Exchange rates to USD'!$L$2:$N$225,3,FALSE()),"") -> 36.9064979
A38: AUS37 | B38: AUS | C38: Other | D38: Sector-specific | E38: Energy | F38: AUD 70.2m | G38: Climate Mitigation | H38: Air Pollution | J38: Setting up a hydrogen export hub to take advantage of the advancements in this low emissions/high powered source of energy | K38: Investment in new energy technologies | Prime Minister of Australia (pm.gov.au) | M38: Positive | O38: 2021-04-08 | P38: AUD | Q38: 70.2 | R38: =IFERROR(Q38/VLOOKUP(P38,'Exchange rates to USD'!$L$2:$N$225,3,FALSE()),"") -> 49.63287649
A39: AUS38 | B39: AUS | C39: Grant/Loan (including interest-free loans) | D39: Sector-specific | E39: Energy | F39: AUD 74.5m | G39: Climate Mitigation | J39: Future Fuels Fund to help businesses and regional communities take advantage of opportunities offered by hydrogen, electric and bio-fuelled vehicles | K39: Investment in new energy technologies | Prime Minister of Australia (pm.gov.au) | M39: Positive | O39: 2021-04-08 | P39: AUD | Q39: 74.5 | R39: =IFERROR(Q39/VLOOKUP(P39,'Exchange rates to USD'!$L$2:$N$225,3,FALSE()),"") -> 52.67306693
A40: AUS39 | B40: AUS | C40: Grant/Loan (including interest-free loans) | D40: Sector-specific | E40: Energy | F40: AUD 40.2m | G40: Climate Mitigation | H40: Air Pollution | J40: Boosting energy and emissions data and cyber-security reporting and supporting the delivery of future Low Emissions Technology Statements under the Technology Investment Roadmap process, as well as developing an offshore clean energy project development framework. | K40: Investment in new energy technologies | Prime Minister of Australia (pm.gov.au) | M40: Positive | O40: 2021-04-08 | P40: AUD | Q40: 40.2 | R40: =IFERROR(Q40/VLOOKUP(P40,'Exchange rates to USD'!$L$2:$N$225,3,FALSE()),"") -> 28.42224551
A41: AUS40 | B41: AUS | C41: Grant/Loan (including interest-free loans) | D41: Sector-specific | E41: Energy | F41: AUD 200m | G41: Climate Mitigation | J41: Clean Energy Innovation Fund for debt and equity investments in emerging clean energy projects and businesses (jointly administered with Clean Energy Finance Cooproation). | K41: https://www.industry.gov.au/sites/default/files/2020-10/2020-21-department-of-industry-science-enery-and-resources-pbs.pdf | M41: Positive | O41: 2021-04-08 | P41: AUD | Q41: 200 | R41: =IFERROR(Q41/VLOOKUP(P41,'Exchange rates to USD'!$L$2:$N$225,3,FALSE()),"") -> 141.4042065
A42: AUS41 | B42: AUS | C42: Grant/Loan (including interest-free loans) | D42: Sector-specific | E42: Buildings | F42: AUD 2b | G42: Water | J42: Funding for projects through the National Water Infrastructure Fund to deliver increased water security, build resilience, deliver jobs and grow agrocultural sector. I.e. National Water Grid. | K42: https://minister.infrastructure.gov.au/mccormack/media-release/infrastructure-investment-laying-foundations-australias-economic-recovery | M42: Positive | O42: 2021-04-08 | P42: AUD | Q42: 2000 | R42: =IFERROR(Q42/VLOOKUP(P42,'Exchange rates to USD'!$L$2:$N$225,3,FALSE()),"") -> 1414.042065
A43: AUS42 | B43: AUS | C43: Other | D43: Sector-specific | E43: Multiple or economy-wide | F43: AUD 33.5m | G43: Other | H43: Biodiversity | J43: Sustaining tourism at Australia's iconic World and National Heritage sites. Including improvements to visitor facilities and accomodation. | K43: https://www.infrastructure.gov.au/department/statements/2020_2021/ministerial-statement/agriculture-water-environment.aspx#new | M43: Indeterminate | O43: 2021-04-08 | P43: AUD | Q43: 33.5 | R43: =IFERROR(Q43/VLOOKUP(P43,'Exchange rates to USD'!$L$2:$N$225,3,FALSE()),"") -> 23.68520459
A44: AUS43 | B44: AUS | C44: Other | D44: Sector-specific | E44: Air transport | F44: AUD 100m | G44: Climate Mitigation | J44: Funding for the Regional Airlines Funding Assistance Program to give direct cash flow assistance to smaller regional air operators to help them continue to provide air connectivity to regional Australia (due to downturn in aviation during Covid-19). | K44: https://www.infrastructure.gov.au/department/statements/2020_2021/ministerial-statement/infrastructure-transport-regional-development-communications.aspx#new | M44: Negative | O44: 2021-04-08 | P44: AUD | Q44: 100 | R44: =IFERROR(Q44/VLOOKUP(P44,'Exchange rates to USD'!$L$2:$N$225,3,FALSE()),"") -> 70.70210326 | S44: change to grant?negative?
A45: AUS44 | B45: AUS | C45: Other | D45: City/regional | F45: AUD 200m | G45: Other | J45: Murray Basin Frieght Rail Project to better connect producers in Victoria with key domestic and export markets. | K45: https://budget.gov.au/2020-21/content/myefo/download/myefo-2020-21.pdf | M45: Positive | O45: 2021-04-08 | P45: AUD | Q45: 200 | R45: =IFERROR(Q45/VLOOKUP(P45,'Exchange rates to USD'!$L$2:$N$225,3,FALSE()),"") -> 141.4042065
A46: AUT1 | B46: AUT | C46: Other or not specified | D46: Economy-wide | E46: Surface transport | F46: EUR 540 million | G46: Climate Mitigation | H46: Air Pollution | J46: A public transport ticket is introduced that provides country-wide affordable access to public transport (metro/bus/rail) for a flat fee (EUR 3 per day); alternatively this can be restricted to one or more selected federal states; the allocation for the ticket subsidy is 240 million; the remainder of 300 million is to be invested in climate friendly mobility (expansion of infra networks) | K46: https://infothek.bmk.gv.at/zwei-klimaschutzmilliarden-fuer-oesterreich/ | L46: Measure discussed pre-COVID | M46: Positive | N46: An annual subsidy of nighttrains of EUR 10 million has been added since the initial proposal. | O46: 17/11/2020 | P46: EUR | Q46: 540 | R46: =IFERROR(Q46/VLOOKUP(P46,'Exchange rates to USD'!$L$2:$N$225,3,FALSE()),"") -> 595.4412282
A47: AUT2 | B47: AUT | C47: Grant/Loan (including interest-free loans) | D47: Sectoral | E47: Buildings | F47: EUR 750 million | G47: Climate Mitigation | H47: Air Pollution | J47: Improve energy efficiency of old buildings by renovation, as to lower their energy needs, and by the change of the heating system away from oil and gas to renewable sources. | M47: Positive | N47: this refers in particular to the programme “Raus aus Öl” – Beyond oil; already in operation for several years, but with significantly higher budget as part of the green recovery | P47: EUR | Q47: 750 | R47: =IFERROR(Q47/VLOOKUP(P47,'Exchange rates to USD'!$L$2:$N$225,3,FALSE()),"") -> 827.0017058
A48: AUT3 | B48: AUT | C48: Grant/Loan (including interest-free loans) | D48: Sectoral | E48: Energy | F48: EUR 260 million | G48: Climate Mitigation | H48: Air Pollution | J48: Investment in renewable energy generation expansion. Funding for 100 million roofs covered with solar panels (to further enhance progress towards 100% renewable energy generation by 2030) | M48: Positive | O48: 2021-03-18 | P48: EUR | Q48: 260 | R48: =IFERROR(Q48/VLOOKUP(P48,'Exchange rates to USD'!$L$2:$N$225,3,FALSE()),"") -> 286.6939247
A49: AUT4 | B49: AUT | C49: R&D subsidies | D49: Sectoral | E49: Surface transport | F49: EUR 300 million | G49: Climate Mitigation | H49: Air Pollution | J49: Funding for innovations for climate friendly transport technologies of the future; this includes R&D for battery technologies in vehicles; R&D support also for private companies investing in this type of R&D; | M49: Positive | P49: EUR | Q49: 300 | R49: =IFERROR(Q49/VLOOKUP(P49,'Exchange rates to USD'!$L$2:$N$225,3,FALSE()),"") -> 330.8006823
A50: AUT5 | B50: AUT | C50: Tax reduction / Other subsidy | D50: Economy-wide | E50: Multiple or economy-wide | F50: EUR 100 million | G50: Waste & recycling | J50: Funding for repairs; very vaguely phrased for now, but broadly in support of a circular economy model;This measure supports services and corresponding employment. The aim is to create incentives to have appliances repaired rather than thrown away and to stimulate companies in the repair sector through a reduced VAT rate; only small repairs are concerned; | M50: Positive | P50: EUR | Q50: 100 | R50: =IFERROR(Q50/VLOOKUP(P50,'Exchange rates to USD'!$L$2:$N$225,3,FALSE()),"") -> 110.2668941
A51: AUT 6 | B51: AUT | C51: Other or not specified | E51: Multiple or economy-wide | F51: EUR 200 million | G51: Climate Mitigation | H51: Adaptation | J51: Funding for climate action for municipalities; the 200 million are used to co-finance (50%) local climate action projects, 20% of the investment volume should flow into NbS | K51: https://www.bmk.gv.at/service/presse/gewessler/20200731_gemeindepaket.html | M51: Positive | N51: Projects supported: renovation, energy efficiency measures, climate-friendly local infrastructure, etc… | O51: 2021-03-18 | P51: EUR | Q51: 200 | R51: =IFERROR(Q51/VLOOKUP(P51,'Exchange rates to USD'!$L$2:$N$225,3,FALSE()),"") -> 220.5337882
A52: AUT 7 | B52: AUT | C52: Grant/Loan (including interest-free loans) | D52: Sectoral | E52: Multiple or economy-wide | F52: EUR 750 million | G52: Climate Mitigation | J52: Investment premium/grant of 14% that can be obtained for climate friendly investments by companies; this includes digitalisation, investments in health, investments in nature/ecosystems; energy efficiency, renewable energies. Out of a total sum of 3 bn € of grants, 750 Mio. € are specifically used for climate-friendly green investments. | M52: Positive | O52: 2021-03-18 | P52: EUR | Q52: 750 | R52: =IFERROR(Q52/VLOOKUP(P52,'Exchange rates to USD'!$L$2:$N$225,3,FALSE()),"") -> 827.0017058
A53: AUT 8 | B53: AUT | C53: R&D subsidies | D53: Sectoral | E53: Forestry | F53: EUR 350 million | G53: Climate Mitigation | H53: Air Pollution | J53: Forest Fund aimed at funding research projects that help enhance climate adaptation of forests; this includes measures to protect and enhance biodviersity, increase the natural forest protected areas, etc… | M53: Positive | P53: EUR | Q53: 350 | R53: =IFERROR(Q53/VLOOKUP(P53,'Exchange rates to USD'!$L$2:$N$225,3,FALSE()),"") -> 385.9341294
A54: AUT 9 | B54: AUT | C54: Grant/Loan (including interest-free loans) | D54: Sectoral | E54: air transport | F54: EUR 600 million | G54: Climate Mitigation | J54: The main airline, Austrian Airlines (a daughter of Lufthansa) is to receive 300 million in form of bank credits guaranteed by the state; 150 million are flowing in form of a direct grant; 150 million are transferred via Lufthansa; the one green condition: 150 million investment for climate efficinet technologies (for ultra short distances up to 350 km an addition ticket tax of EUR 30 was agreed) | K54: https://platform2020redesign.org/countries/austria/ | M54: Mixed | P54: EUR | Q54: 600 | R54: =IFERROR(Q54/VLOOKUP(P54,'Exchange rates to USD'!$L$2:$N$225,3,FALSE()),"") -> 661.6013646
A55: BEL1 | B55: BEL | C55: Other or not specified | D55: City/regional | E55: Multiple or economy-wide | F55: 700 million | G55: Climate Mitigation | H55: Waste & recycling | I55: Water | J55: Flanders has put together a relance plan (Flemish resilience - Vlaamse veerkracht) for a total budget of 4,3 billion euro (5 billion $). It is an economy-wide plan that focuses on 7 pillars (so roughly said 700 million $ per pillar). One of the seven pillars is Climate, Sustainability and Innovation. Key focal points for innovation are: CO2 captation in harbours, biogas and bio-based products, hydrogen, blue deal for drought management, renovation of buildings, greening the modal shift (bicycle lanes, car sharing, bike sharing, ...), transition to the circular economy. | K55: https://www.vlaanderen.be/publicaties/relanceplan-vlaamse-regering-vlaamse-veerkracht | L55: https://www.vlaio.be/nl/nieuws/43-miljard-euro-voor-relanceplan-vlaamse-veerkracht | M55: Mixed | N55: Most intentions already existed before, but now more budget is shifted to the priority topics. Most practical modalities still need to be developed. | O55: 16/11/2020 | P55: EUR | Q55: 700 | R55: =IFERROR(Q55/VLOOKUP(P55,'Exchange rates to USD'!$L$2:$N$225,3,FALSE()),"") -> 771.8682588
A56: BEL2 | B56: BEL | C56: Other or not specified | D56: City/regional | E56: Multiple or economy-wide | G56: Climate Mitigation | H56: Biodiversity | J56: Brussels has put together a Relance and redevelopment Plan (Relance- en herontwikkelingsplan voor Brussel - Plan de relance et de redéploiment de RBC). One out of the three pillars concerns urban planning and environment. Focal points are: cycling paths, renovation of buildings and the procurement of an area to foster biodiversity in urban context. The total budget concerns 120 million € but is mainly focused on short term relance and econmic survival measures. The medium term priorities and almost all environmental measures still need to be developed. | K56: https://rudivervoort.brussels/wp-content/uploads/2020/07/Plan-de-relance-Dossier-de-presse-NL.pdf | L56: https://www.voka.be/nieuws/brussels-herstelplan-eerste-stap-relance | M56: Mixed | O56: 16/11/2020 | R56: =IFERROR(Q56/VLOOKUP(P56,'Exchange rates to USD'!$L$2:$N$225,3,FALSE()),"") -> 
A57: BEL3 | B57: BEL | C57: Grant/Loan (including interest-free loans) | D57: City/regional | E57: Buildings | F57: 12 million | G57: Climate Mitigation | J57: In the Relance and Redevelopment plan discussed above, there is a measure to enhance renovation of buildings: 8 million euros goes energy saving subsidies and 2 million goes to support for landlords that are planning a renovation. | K57: https://www.voka.be/nieuws/brussels-herstelplan-eerste-stap-relance | M57: Positive | O57: 16/11/2020 | P57: EUR | Q57: 12 | R57: =IFERROR(Q57/VLOOKUP(P57,'Exchange rates to USD'!$L$2:$N$225,3,FALSE()),"") -> 13.23202729
A58: BEL4 | B58: BEL | C58: Other or not specified | D58: City/regional | E58: Multiple or economy-wide | G58: Climate Mitigation | H58: Biodiversity | I58: Waste & recycling | J58: Wallonia has launched the 'Get Up Wallonia' plan. It has an economy-wide focus with sustainability as one of the three pillars. A processus involving a range of experts and stakeholders should lead to concrete relance measures and an analysis of the budgetary impacts in the first quarter of 2021. | K58: https://gouvernement.wallonie.be/files/%255BNote%20du%20Gouvernement%20de%20Wallonie%255D%20-%20Get%20up%20Wallonia%20!.pdf | L58: https://www.lecho.be/economie-politique/belgique/wallonie/le-covid-ne-peut-servir-de-paravent-a-la-relance-de-la-wallonie/10256438.html | M58: Positive | O58: 16/11/2020 | R58: =IFERROR(Q58/VLOOKUP(P58,'Exchange rates to USD'!$L$2:$N$225,3,FALSE()),"") -> 
A59: BEL5 | B59: BEL | C59: Other or not specified | D59: Economy-wide | E59: Multiple or economy-wide | G59: Climate Mitigation | H59: Waste & recycling | I59: Biodiversity | J59: The new Belgian government (October 2020) has included Green Relance as one of its six pillars for its governmental agreement (Regeringsakkoord). The measures still have to be made concrete. | K59: https://www.belgium.be/sites/default/files/Regeerakkoord_2020.pdf | M59: Indeterminate | O59: 16/11/2020 | R59: =IFERROR(Q59/VLOOKUP(P59,'Exchange rates to USD'!$L$2:$N$225,3,FALSE()),"") -> 
A60: BEL6 | B60: BEL | C60: Tax reduction / Other subsidy | D60: Sectoral | E60: Buildings | F60: EUR 191 million | G60: Climate Mitigation | J60: The Value Added Tax for Demolition and Reconstruction will be reduced from 21% to 6% to speed up energy savings in residential buildings in Belgium. | K60: https://www.belgium.be/sites/default/files/Regeerakkoord_2020.pdf | L60: https://www.tijd.be/netto/analyse/vastgoed/strikte-regels-voor-sloop-en-heropbouw-aan-6-procent-btw/10257614.html | M60: Mixed | O60: 2021-03-10 | P60: EUR | Q60: 191 | R60: =IFERROR(Q60/VLOOKUP(P60,'Exchange rates to USD'!$L$2:$N$225,3,FALSE()),"") -> 210.6097677
A61: BEL7 | B61: BEL | C61: Tax reduction / Other subsidy | D61: Sector-specific | E61: Forestry | F61: EUR 23 millions | G61: Biodiversity | J61: Increase with 20% of salary fraction that can be deducted for donations: from 45% to 60%. The measure applies to all registered charities including charities that purchase and restore nature. | K61: https://financien.belgium.be/nl/particulieren/belastingvoordelen/giften#q3 | M61: Positive | O61: 2021-03-10 | P61: EUR | Q61: 23 | R61: =IFERROR(Q61/VLOOKUP(P61,'Exchange rates to USD'!$L$2:$N$225,3,FALSE()),"") -> 25.36138564
A62: BEL8 | B62: BEL | C62: Tax reduction / other subsidy | E62: Multiple or economy-wide | F62: EUR 203 millions | J62: Increase of the investment deduction percentage to 25% for investments made between 12/03/2020 and 31/12/2022 | K62: Loi-programme du 20/12/2020 https://finances.belgium.be/fr/loi-programme/augmentation-deduction-investissement | M62: Indeterminate | O62: 2021-03-10 | P62: EUR | Q62: 203 | R62: =IFERROR(Q62/VLOOKUP(P62,'Exchange rates to USD'!$L$2:$N$225,3,FALSE()),"") -> 223.841795
A63: BEL9 | B63: BEL | C63: Other or not specified | D63: City/regional | E63: Waste management | F63: EUR 40 millions | G63: Waste & recycling | J63: Asbestos removal policy in Flanders (subsidies for removal & treatment) | M63: Positive | O63: 2021-03-10 | P63: EUR | Q63: 40 | R63: =IFERROR(Q63/VLOOKUP(P63,'Exchange rates to USD'!$L$2:$N$225,3,FALSE()),"") -> 44.10675764
A64: BEL10 | B64: BEL | C64: Other or not specified | D64: City/regional | E64: Waste management | F64: EUR 30 millions | G64: Waste & recycling | J64: Development of Flanders as a recycling hub (Investment subsidy) | M64: Positive | O64: 2021-03-10 | P64: EUR | Q64: 30 | R64: =IFERROR(Q64/VLOOKUP(P64,'Exchange rates to USD'!$L$2:$N$225,3,FALSE()),"") -> 33.08006823
A65: BEL11 | B65: BEL | C65: Other or not specified | D65: City/regional | E65: Waste management | F65: EUR 1.95 millions | G65: Waste & recycling | J65: Digital mapping of material flows in Flanders | M65: Indeterminate | O65: 2021-03-10 | P65: EUR | Q65: 1.95 | R65: =IFERROR(Q65/VLOOKUP(P65,'Exchange rates to USD'!$L$2:$N$225,3,FALSE()),"") -> 2.150204435
A66: BEL12 | B66: BEL | C66: Other or not specified | D66: City/regional | E66: Buildings | F66: EUR 10 millions | G66: Other | J66: Circular construction in Flanders (Subsidies for R&D, innovation, pilots, demos living labs) | M66: Positive | O66: 2021-03-10 | P66: EUR | Q66: 10 | R66: =IFERROR(Q66/VLOOKUP(P66,'Exchange rates to USD'!$L$2:$N$225,3,FALSE()),"") -> 11.02668941
A67: BEL13 | B67: BEL | C67: Other or not specified | D67: City/regional | E67: Industry | F67: EUR 15 millions | G67: Other | J67: Circular manufacturing in Flanders (Subsidies for R&D, innovation, pilots, demos living labs) | M67: Positive | O67: 2021-03-10 | P67: EUR | Q67: 15 | R67: =IFERROR(Q67/VLOOKUP(P67,'Exchange rates to USD'!$L$2:$N$225,3,FALSE()),"") -> 16.54003412
A68: CAN1 | B68: CAN | C68: Other or not specified | D68: Sectoral | E68: Energy | F68: CAD 1.72 billion | G68: Other | J68: Cleaning up orphan and inactive oil and gas wells Specific to the Covid-19 economic response plan, the Canadian federal government is providing up to CAD 1.72 billion to the governments of Alberta, Saskatchewan and BC and to the AB orphan well association to clean up orphan and inactive oil and gas wells, helping to maintain approximately 5 200 jobs in AB alone. | K68: https://www.canada.ca/en/department-finance/economic-response-plan.html#energy | M68: Positive | P68: CAD | Q68: 1720 | R68: =IFERROR(Q68/VLOOKUP(P68,'Exchange rates to USD'!$L$2:$N$225,3,FALSE()),"") -> 1313.159867
A69: CAN2 | B69: CAN | C69: Grant/Loan (including interest-free loans) | D69: Sectoral | E69: Multiple or economy-wide | F69: CAD 65 billion (up to) | J69: On 21 April, the Canadian Federal Government also launched the Business Credit Availability Program for medium-sized businesses, including those in the energy sector, to help maintain operations and keep employees on the job. The program will provide up to CAD 65 billion in direct lending but in market terms (no preferential rate). | K69: https://www.fasken.com/en/knowledge/2020/04/17-covid-19-aid-package-to-the-canadian-oil-and-gas-industry/ | M69: Indeterminate | P69: CAD | Q69: 65000 | R69: =IFERROR(Q69/VLOOKUP(P69,'Exchange rates to USD'!$L$2:$N$225,3,FALSE()),"") -> 49625.22754
A70: CAN3 | B70: CAN | C70: Grant/Loan (including interest-free loans) | D70: Sectoral | E70: Energy | F70: Up to CAD 750 million | G70: Climate Mitigation | H70: Air Pollution | J70: Up to $750 million to create a new Emissions Reduction Fund to support workers and reduce emissions in Canada's oil and gas sector, with a focus on methane. This fund will provide primarily repayable contributions to conventional and offshore oil and gas firms to support their investments to reduce greenhouse gas emissions. Of this amount, $75 million will be allocated to the offshore sector. | K70: https://www.nrcan.gc.ca/science-data/funding-partnerships/funding-opportunities/current-funding-opportunities/emissions-reduction-fund/22781 | M70: Positive | P70: CAD | Q70: 750 | R70: =IFERROR(Q70/VLOOKUP(P70,'Exchange rates to USD'!$L$2:$N$225,3,FALSE()),"") -> 572.5987793
A71: CAN4 | B71: CAN | C71: Other or not specified | D71: Sectoral | E71: Agriculture | F71: 50 million (initially) | G71: Waste & recycling | H71: Climate Mitigation | J71: We launched the Surplus Food Purchase Program with an initial $50 million fund designed to help redistribute existing and unsold inventories, which could include products such as potatoes and poultry, to local food organizations who are serving vulnerable Canadians. | K71: https://www.agr.gc.ca/eng/agricultural-programs-and-services/surplus-food-rescue-program/?id=1591298974329 | M71: Positive | P71: CAD | Q71: 50 | R71: =IFERROR(Q71/VLOOKUP(P71,'Exchange rates to USD'!$L$2:$N$225,3,FALSE()),"") -> 38.17325196
A72: CAN5 | B72: CAN | C72: Tax reduction / Other subsidy | D72: Sectoral | E72: Air transport | F72: CAD 330 million | G72: Climate Mitigation | H72: Air Pollution | J72: We are waiving ground lease rents from March 2020 through to December 2020 for the 21 airport authorities that pay rent to the federal government. We are also providing comparable treatment for PortsToronto, which operates Billy Bishop Toronto City Airport and pays a charge to the federal government. | K72: https://www.canada.ca/en/department-finance/economic-response-plan.html | L72: https://climateactiontracker.org/countries/canada/ | M72: Negative | P72: CAD | Q72: 330 | R72: =IFERROR(Q72/VLOOKUP(P72,'Exchange rates to USD'!$L$2:$N$225,3,FALSE()),"") -> 251.9434629
A73: CAN6 | B73: CAN | C73: Grant/Loan (including interest-free loans) | D73: City/regional | E73: Air transport | F73: Up to CAD 22.7 million | G73: Climate Mitigation | J73: We are providing up to $17.3 million to the governments of Yukon, Northwest Territories, and Nunavut to support critical air services to Northern and remote communities, in partnership with investments by the territorial governments, to ensure the continued supply of food, medical supplies, and other essential goods and services to remote and fly-in communities. | K73: https://www.canada.ca/en/department-finance/economic-response-plan.html | M73: Negative | P73: CAD | Q73: 22.7 | R73: =IFERROR(Q73/VLOOKUP(P73,'Exchange rates to USD'!$L$2:$N$225,3,FALSE()),"") -> 17.33065639
A74: CAN7 | B74: CAN | C74: Tax reduction / Other subsidy | D74: Sectoral | E74: Multiple or economy-wide | G74: Biodiversity | J74: We will work with tourism operators in national parks, historic sites, and marine conservation areas to defer payments on commercial leases and licences of occupation without interest until September 1, 2020. In addition, we will waive up to 75 percent of eligible commercial rents for the months of April, May and June 2020 or equivalent amounts of annual rents. | K74: https://www.canada.ca/en/department-finance/economic-response-plan.html | M74: Indeterminate | P74: CAD | R74: =IFERROR(Q74/VLOOKUP(P74,'Exchange rates to USD'!$L$2:$N$225,3,FALSE()),"") -> 0
A75: CAN8 | B75: CAN | C75: Grant/Loan (including interest-free loans) | D75: Economy-wide | E75: Multiple or economy-wide | F75: CAD 2.2 billion | G75: Climate Mitigation | H75: Air Pollution | J75: We are accelerating $2.2 billion in annual federal infrastructure funding for communities through the Gas Tax Fund. The funding will be delivered in one payment in June will help communities quickly move forward with infrastructure projects that will improve our quality of life and help restart local economies. Communities have flexibility to use the funding to meet their local needs. Projects could include access to high-speed broadband, improvements to water and road systems, and the building of cycling and walking paths. | K75: https://www.infrastructure.gc.ca/plan/gtf-fte-eng.html | M75: Mixed | P75: CAD | Q75: 2200 | R75: =IFERROR(Q75/VLOOKUP(P75,'Exchange rates to USD'!$L$2:$N$225,3,FALSE()),"") -> 1679.623086
A76: CAN9 | B76: CAN | C76: Tax reduction / Other subsidy | D76: City/regional | E76: Energy | F76: CAD 113 million | G76: Climate Mitigation | H76: Air Pollution | J76: (Alberta-specific) Alberta Energy Regulator industry levy for a 6 months, achieving $113 million in industry relief. | K76: https://www.alberta.ca/relief-for-the-energy-sector.aspx | M76: Mixed | P76: CAD | Q76: 113 | R76: =IFERROR(Q76/VLOOKUP(P76,'Exchange rates to USD'!$L$2:$N$225,3,FALSE()),"") -> 86.27154942
A77: CAN10 | B77: CAN | C77: Regulatory change | D77: City/regional | E77: Energy | G77: Climate Mitigation | H77: Air Pollution | J77: (Alberta-specific) Extending the term of mineral agreements expiring between March 20, 2020 and March 31, 2021 by 1 year to provide increased certainty for industry by allowing additional time to raise capital and plan future activities. | K77: https://www.alberta.ca/relief-for-the-energy-sector.aspx | M77: Negative | P77: CAD | R77: =IFERROR(Q77/VLOOKUP(P77,'Exchange rates to USD'!$L$2:$N$225,3,FALSE()),"") -> 0
A78: CAN11 | B78: CAN | C78: Grant/Loan (including interest-free loans) | D78: City/regional | E78: Surface transport | F78: CAD 1 billion | G78: Climate Mitigation | H78: Air Pollution | J78: (Alberta-specific, with federal funding) Advancing strategic infrastructure investments, including participation in the Canada Infrastructure Bank’s potential $1 billion project that would develop high-speed rail between Calgary and Banff. | K78: https://www.alberta.ca/recovery-plan.aspx#economy | M78: Positive | P78: CAD | Q78: 1000 | R78: =IFERROR(Q78/VLOOKUP(P78,'Exchange rates to USD'!$L$2:$N$225,3,FALSE()),"") -> 763.4650391
A79: CAN12 | B79: CAN | C79: Other or not specified | D79: City/regional | E79: Air transport | G79: Climate Mitigation | J79: (Alberta-specific) Support to air transport: - Seeking partnerships to grow and expand remotely piloted aircraft systems by leveraging assets such as the aircraft testing range in Foremost - Promoting Alberta’s position as a growing hub for logistics, including the significant scope to grow services in both Edmonton and Calgary - Enacting regulatory changes that permit increased airline traffic and services in Alberta, including expansion by WestJet, and other airlines that have a significant presence and focus in Alberta, such as Swoop and Flair - Working with post-secondary institutions and private sector investors to address the massive shortage in trained pilots and maintenance personnel within the aviation sector | K79: https://www.alberta.ca/recovery-plan.aspx#economy | M79: Negative | P79: CAD | R79: =IFERROR(Q79/VLOOKUP(P79,'Exchange rates to USD'!$L$2:$N$225,3,FALSE()),"") -> 0
A80: CAN13 | B80: CAN | C80: Other or not specified | D80: City/regional | E80: Energy | G80: Climate Mitigation | H80: Air Pollution | J80: (Saskatchewan) Provincial relief measures by the Government of Saskatchewan include: Extending a series of filing and other deadlines to assist the oil and gas sector in stabilizing operations, as their employees transition to working from home. These extensions do not impact health or environmental safety and apply to routine reporting activities, which will be addressed when the sector returns to normal operations. Extending mineral rights, scheduled to expire in 2020, by one year. This includes rights granted under the terms of an oil and gas lease, exploration license or permit. The extension will provide oil and gas disposition holders with the time necessary to properly evaluate their properties once the current situation stabilizes. Reducing the industry portion of the Oil and Gas Administrative Levy by 50 per cent this fiscal year and delaying the invoicing of the remaining balance until October 1, 2020. This will provide the sector with relief of $11.4 million to address immediate liquidity challenges. (It is important to note that unlike other sectors, the oil and gas sector pays for 90 per cent of its own regulatory costs). | K80: https://www.saskatchewan.ca/government/news-and-media/2020/april/14/oil-industry-support | M80: Negative | P80: CAD | R80: =IFERROR(Q80/VLOOKUP(P80,'Exchange rates to USD'!$L$2:$N$225,3,FALSE()),"") -> 0
A81: CAN14 | B81: CAN | C81: Other or not specified | D81: Sectoral | E81: Agriculture | F81: CAD 200 million | G81: Climate Mitigation | H81: Waste & recycling | J81: We have increased the Canadian Dairy Commission’s borrowing limit by $200 million to support costs associated with the temporary storage of cheese and butter to avoid food waste. | K81: https://www.canada.ca/en/department-finance/economic-response-plan.html | M81: Mixed | O81: 2020-11-16 | P81: CAD | Q81: 200 | R81: =IFERROR(Q81/VLOOKUP(P81,'Exchange rates to USD'!$L$2:$N$225,3,FALSE()),"") -> 152.6930078
A82: CAN15 | B82: CAN | C82: Grant/Loan (including interest-free loans) | D82: Sectoral | E82: Agriculture | F82: CAD 62.5 million | G82: Climate Mitigation | H82: Waste & recycling | J82: We are providing $62.5 million of new assistance to the fish and seafood processing sector through the Canadian Seafood Stabilization Fund. This will help businesses: add storage capacity for unsold product; comply with new health and safety measures for workers; support new manufacturing/automated technologies to improve productivity and quality of finished seafood products; and, adapt products to respond to changing requirements and new market demands. Regional Development Agencies are now accepting applications to the Fund. | K82: https://www.canada.ca/en/department-finance/economic-response-plan.html | M82: Mixed | O82: 2020-11-16 | P82: CAD | Q82: 62.5 | R82: =IFERROR(Q82/VLOOKUP(P82,'Exchange rates to USD'!$L$2:$N$225,3,FALSE()),"") -> 47.71656494
A83: CAN16 | B83: CAN | C83: Grant/Loan (including interest-free loans) | D83: Sectoral | E83: Multiple or economy-wide | F83: CAD 3 billion | G83: Climate Mitigation | H83: Air Pollution | I83: Adaptation | J83: The new stream will support the following types of projects: Retrofits, repairs and upgrades for municipal, territorial, provincial and Indigenous buildings, health infrastructure and schools; COVID-19 response infrastructure, including measures to support physical distancing; Active transportation infrastructure, including parks, trails, foot bridges, bike lanes and multi-use paths; and Disaster mitigation and adaptation projects, including natural infrastructure, flood and fire mitigation, and tree planting and related infrastructure. The stream supports near-term, quick- start projects and projects must respect the following timeframes: Construction must start no later than September 30, 2021; and, Projects must be completed by the end of 2021, or by the end of 2022 in the territories and in remote communities. | K83: https://www.canada.ca/en/department-finance/economic-response-plan.html | L83: https://www.infrastructure.gc.ca/plan/covid-19-resilience-eng.html | M83: Positive | O83: 2020-11-16 | P83: CAD | Q83: 3000 | R83: =IFERROR(Q83/VLOOKUP(P83,'Exchange rates to USD'!$L$2:$N$225,3,FALSE()),"") -> 2290.395117
A84: CAN17 | B84: CAN | C84: Grant/Loan (including interest-free loans) | D84: City/regional | E84: Energy | F84: CAD 320 million | G84: Climate Mitigation | H84: Air pollution | I84: Biodiversity | J84: We are providing $320 million in funding, towards an agreement with the Newfoundland and Labrador government, to support Canadians with offshore energy jobs. This agreement will allow the province to support workers through activities such as safety improvements, maintenance and upgrades of existing facilities, and research and development. | K84: https://www.canada.ca/en/department-finance/economic-response-plan.html | L84: https://www.cbc.ca/news/canada/newfoundland-labrador/offshore-announcement-o-regan-furey-1.5738954 | M84: Indeterminate | N84: The impacts of this federal funding are unclear - could be spent to reduce emissions, or to increase exploration in the Atlantic region, or fix equipment that is currently not operational. | O84: 2020-11-16 | P84: CAD | Q84: 320 | R84: =IFERROR(Q84/VLOOKUP(P84,'Exchange rates to USD'!$L$2:$N$225,3,FALSE()),"") -> 244.3088125
A85: CAN18 | B85: CAN | C85: Grant/Loan (including interest-free loans) | D85: City/regional | E85: Surface transport | F85: CAD 2.3 billion | G85: Climate Mitigation | H85: Air Pollution | J85: the Government of Canada will also cost-match more than $2.3 billion to support any additional provincial/territorial contributions for public transit. | K85: https://www.canada.ca/en/intergovernmental-affairs/services/safe-restart-agreement.html | L85: https://montreal.ctvnews.ca/provincial-federal-governments-announce-2-3-billion-for-cities-and-public-transit-1.5120417 | M85: Positive | O85: 2020-11-16 | P85: CAD | Q85: 2300 | R85: =IFERROR(Q85/VLOOKUP(P85,'Exchange rates to USD'!$L$2:$N$225,3,FALSE()),"") -> 1755.96959
A86: CAN19 | B86: CAN | C86: Tax reduction / Other subsidy | D86: Sector-specific | E86: Agriculture | F86: CAD 469 million | G86: Biodiversity | J86: Support for Canada’s Fish Harvesters | K86: https://www.canada.ca/en/department-finance/economic-response-plan/fiscal-summary.html | M86: Mixed | O86: 2020-11-20 | P86: CAD | Q86: 469 | R86: =IFERROR(Q86/VLOOKUP(P86,'Exchange rates to USD'!$L$2:$N$225,3,FALSE()),"") -> 358.0651033
A87: CAN20 | B87: CAN | C87: Tax reduction / Other subsidy | D87: Sectoral | E87: Forestry | F87: CAD 30 million | G87: Biodiversity | H87: Biodiversity | J87: Emergency Funding for Safety Measures in Forest Operations | K87: Energy Policy Tracker | M87: Mixed | O87: 2020-11-20 | P87: CAD | Q87: 30 | R87: =IFERROR(Q87/VLOOKUP(P87,'Exchange rates to USD'!$L$2:$N$225,3,FALSE()),"") -> 22.90395117
A88: CAN21 | B88: CAN | C88: Grant/Loan (including interest-free loans) | D88: Sectoral | E88: Multiple or economy-wide | F88: CAD 53 million | G88: Biodiversity | J88: Develop and implement the National Ecosystem Fund to support Black-led business organizations across the country | K88: https://www.canada.ca/en/department-finance/economic-response-plan.html | M88: Mixed | O88: 2020-11-20 | P88: CAD | Q88: 53 | R88: =IFERROR(Q88/VLOOKUP(P88,'Exchange rates to USD'!$L$2:$N$225,3,FALSE()),"") -> 40.46364707
A89: CAN22 | B89: CAN | C89: Tax reduction / Other subsidy | D89: City/regional | E89: Energy | F89: CAD 141.5 million | G89: Climate Mitigation | H89: Climate Mitigation | J89: (Alberta) Investments from the Technology Innovation and Emissions Reduction (TIER) fund for carbon capture and storage and emissions reductions projects. Objective: Reduce methane emissions, cut costs for industry and get Albertans back to work. | K89: Energy Policy Tracker | L89: https://www.alberta.ca/release.cfm?xID=7329228BE88D1-0322-5F49-C6C11B795F47B4C0 https://www.alberta.ca/release.cfm?xID=73318C6591C57-0E3B-1147-1811898B8A0131A5 Accessed 28 September 2020 | M89: Positive | N89: Government of Alberta | O89: 2020-11-20 | P89: CAD | Q89: 141.5 | R89: =IFERROR(Q89/VLOOKUP(P89,'Exchange rates to USD'!$L$2:$N$225,3,FALSE()),"") -> 108.030303
A90: CAN23 | B90: CAN | C90: Tax reduction / Other subsidy | D90: City/regional | E90: Surface transport | F90: CAD 64.4 million | G90: Climate Mitigation | J90: (Ontario) Provincial investment in modern, green public transit for residents of Oakville, Brampton, and Sault Ste-Marie | K90: Energy Policy Tracker | L90: https://www.canada.ca/en/office-infrastructure/news/2020/07/backgrounder-canada-and-ontario-invest-in-modern-green-public-transit-for-residents-of-oakville.htm, , https://www.canada.ca/en/office-infrastructure/news/2020/07/backgrounder-canada-and-ontario-invest-in-sustainable-public-transit-to-support-residents-of-sault-ste-marie.html Accessed 1 August 2020; https://www.canada.ca/en/office-infrastructure/news/2020/07/backgrounder-canada-and-ontario-invest-in-sustainable-public-transit-for-brampton-residents.html Accessed 1 August 2020 | M90: Mixed | N90: Government of Ontario | O90: 2020-11-20 | P90: CAD | Q90: 64.4 | R90: =IFERROR(Q90/VLOOKUP(P90,'Exchange rates to USD'!$L$2:$N$225,3,FALSE()),"") -> 49.16714852
A91: CAN24 | B91: CAN | C91: Tax reduction / Other subsidy | D91: City/regional | E91: Energy | F91: CAD 58 million | G91: Climate Mitigation | H91: Air Pollution | J91: (Alberta) Incent investment in innovation for methane emissions reductions - Exploration or production or processing or storage or transportation | K91: Energy Policy Tracker | L91: https://www.alberta.ca/release.cfm?xID=728627405CE2F-953D-C71A-39908B074E8213CE Accessed 21 July 2020 | M91: Mixed | N91: Government of Alberta | O91: 2020-11-20 | P91: CAD | Q91: 58 | R91: =IFERROR(Q91/VLOOKUP(P91,'Exchange rates to USD'!$L$2:$N$225,3,FALSE()),"") -> 44.28097227
A92: CAN25 | B92: CAN | C92: Grant/Loan (including interest-free loans) | D92: City/regional | E92: Energy | F92: CAD 50 million | G92: Climate Mitigation | H92: Air Pollution | J92: (Alberta) Grants for energy efficiency projects and emissions reduction`(research, innovation in technologies to reduce methane emissions and improve industrial energy efficiency) | K92: Energy Policy Tracker | L92: https://www.alberta.ca/release.cfm?xID=745642FF8ABED-9314-3005-E8D65AF4E905EAB2 Accessed 3 November 2020 | M92: Mixed | O92: 2020-11-20 | P92: CAD | Q92: 50 | R92: =IFERROR(Q92/VLOOKUP(P92,'Exchange rates to USD'!$L$2:$N$225,3,FALSE()),"") -> 38.17325196
A93: CAN26 | B93: CAN | C93: Tax reduction / Other subsidy | D93: City/regional | E93: Energy | F93: CAD 2.9 billion | G93: Climate Mitigation | J93: (Ontario) Securing power plant ownership under the provincial crown corporation in order to provide electricity | K93: Energy Policy Tracker | L93: https://www.opg.com/media_release/opg-subsidiary-atura-power-finalizes-acquisition-of-natural-gas-assets/ Accessed 11 May 2020 | M93: Mixed | O93: 2020-11-20 | P93: CAD | Q93: 2900 | R93: =IFERROR(Q93/VLOOKUP(P93,'Exchange rates to USD'!$L$2:$N$225,3,FALSE()),"") -> 2214.048613
A94: CAN27 | B94: CAN | C94: Tax reduction / Other subsidy | D94: City/regional | E94: Surface transport | F94: CAD 295 million | G94: Climate Mitigation | H94: Air Pollution | J94: (Ontario) Provincial funding for battery electric vehicle production at Ford Canada&#8217;s Oakville Assembly Complex | K94: Energy Policy Tracker | L94: https://news.ontario.ca/en/release/58736/historic-ford-canada-investment-transforming-ontario-into-global-electric-vehicle-manufacturing-hub Accessed 13 October 2020 | M94: Positive | N94: Provincial contribution to a $1.8 billion total public and private investment into Ford's Oakville, Ontario plant. The plant directly employs over 3,000 people and will be updated with a flexible manufacturing system able to accommodate multiple battery electric vehicle (BEV) models. It will also include the installation of a battery-pack assembly line. With this funding, the Oakville Assembly Complex is expected to become one of Ford's highest volume BEV plants in North America, with the first electric vehicles forecasted to roll off the production line in 2025. | O94: 2020-11-20 | P94: CAD | Q94: 295 | R94: =IFERROR(Q94/VLOOKUP(P94,'Exchange rates to USD'!$L$2:$N$225,3,FALSE()),"") -> 225.2221865
A95: CAN28 | B95: CAN | C95: Tax reduction / Other subsidy | D95: City/regional | E95: Energy | F95: CAD 70 million | G95: Climate Mitigation | J95: (Quebec) Support for production and distribution of renewable natural gas-Reduce GHG emissions in natural gas networks and support local industry | K95: Energy Policy Tracker | L95: https://mern.gouv.qc.ca/gouvernement-quebec-attribue-70-m-soutenir-gaz-naturel-renouvelable-2020-07-07/ Accessed 15 July 2020 | M95: Mixed | N95: Earmarked CAD 70 million over three years for renewable natural gas (RNG) projects. The 2020 budget sets aside CAD 45 million for eight RNG production projects, including for construction and for connection of production sites to the natural gas distribution network. Terms and conditions for the allocation of the remaining $25 million will be announced at a later date. | O95: 2020-11-20 | P95: CAD | Q95: 70 | R95: =IFERROR(Q95/VLOOKUP(P95,'Exchange rates to USD'!$L$2:$N$225,3,FALSE()),"") -> 53.44255274
A96: CAN29 | B96: CAN | C96: Tax reduction / Other subsidy | D96: City/regional | E96: Energy | F96: CAD 16.67 million | G96: Climate Mitigation | J96: (Prince Edward Island) Supporting clean electricity investments in the western part of the island | K96: Energy Policy Tracker | L96: https://www.canada.ca/en/office-infrastructure/news/2020/07/canada-and-prince-edward-island-invest-in-new-transmission-line-to-support-wind-energy-production.html Accessed 1 August 2020 | M96: Positive | O96: 2020-11-20 | P96: CAD | Q96: 16.67 | R96: =IFERROR(Q96/VLOOKUP(P96,'Exchange rates to USD'!$L$2:$N$225,3,FALSE()),"") -> 12.7269622
A97: CAN30 | B97: CAN | C97: Tax reduction / Other subsidy | D97: City/regional | E97: Energy | F97: CAD 18 million | G97: Climate Mitigation | J97: (British Columbia) Green energy infrastructure and transportation investment matching funding | K97: Energy Policy Tracker | L97: https://www.canada.ca/en/office-infrastructure/news/2020/09/backgrounder-canada-and-british-columbia-invest-in-green-energy-solutions.html Accessed 28 September 2020 | M97: Mixed | N97: The Government of British Columbia is contributing nearly $18 million through the CleanBC Communities Fund, part of the federal Investing in Canada planâ€™s Green Infrastructure Stream. This announcement includes funding for 11 projects to help B.C. communities save energy and reduce pollution, including through renewable energy and energy efficiency projects for select buildings. Funding is also going towards expanding the network of Level-2 electric vehicle (EV) charging stations across the province. The Government of Canada is investing more than $28.5 million in these projects through the Green Infrastructure Stream (GIS) of the Investing in Canada plan, and local and Indigenous communities are contributing more than $13 million. | O97: 2020-11-20 | P97: CAD | Q97: 18 | R97: =IFERROR(Q97/VLOOKUP(P97,'Exchange rates to USD'!$L$2:$N$225,3,FALSE()),"") -> 13.7423707
A98: CAN31 | B98: CAN | C98: Tax reduction / Other subsidy | D98: City/regional | E98: Energy | F98: CAD 6 billion | G98: Climate Mitigation | J98: (Alberta) Increasing Alberta's takeaway capacity and access to international markets | K98: Energy Policy Tracker | L98: https://www.alberta.ca/investing-in-keystone-xl-pipeline.aspx Accessed 8 July 2020 | M98: Negative | N98: The Keystone XL pipeline was proposed in 2008. With this investment and project, the Albertan government anticipates material benefits (through taxes and royalties) to provincial government revenues and the wider Canadian economy, including jobs. | O98: 2020-11-20 | P98: CAD | Q98: 6000 | R98: =IFERROR(Q98/VLOOKUP(P98,'Exchange rates to USD'!$L$2:$N$225,3,FALSE()),"") -> 4580.790235
A99: CAN32 | B99: CAN | C99: Tax reduction / Other subsidy | D99: City/regional | E99: Energy | F99: CAD 80 million | G99: Climate Mitigation | J99: (Alberta) Reduce fiscal burdens for energy sector. | K99: Energy Policy Tracker | L99: https://www.alberta.ca/release.cfm?xID=7450191EACDD1-D715-3078-59DF6480E106FC9E Accessed 26 October 2020 | M99: Negative | N99: A series of measures to reduce fiscal burdens for oil and gas companies, including elimination of the Well Drilling Equipment Tax, extending a 35% assessment reduction on shallow gas wells, lowering tax assessments for less productive wells, and a 3-year tax exemption for companies building new pipelines or drilling new wells. | O99: 2020-11-20 | P99: CAD | Q99: 80 | R99: =IFERROR(Q99/VLOOKUP(P99,'Exchange rates to USD'!$L$2:$N$225,3,FALSE()),"") -> 61.07720313
A100: CAN33 | B100: CAN | C100: Tax reduction / Other subsidy | D100: City/regional | E100: Energy | F100: CAD 32 million | G100: Climate Mitigation | J100: (Newfoundland and Labrador) Support initiatives to develop the province's oil and gas industry | K100: Energy Policy Tracker | L100: https://www.gov.nl.ca/budget/2020/wp-content/uploads/sites/3/2020/09/Innovation-Industry-Development.pdf Accessed 5 October 2020 | M100: Negative | N100: Budget 2020 allocates CAD 26 million for exploration activities to systematically evaluate offshore basins and image prospects to capture global investment offshore Newfoundland and Labrador. It also allocates CAD 6 million to help supply-and-service companies in the oil and gas sector through the Innovation and Business Development Fund. | O100: 2020-11-20 | P100: CAD | Q100: 32 | R100: =IFERROR(Q100/VLOOKUP(P100,'Exchange rates to USD'!$L$2:$N$225,3,FALSE()),"") -> 24.43088125
A101: CAN34 | B101: CAN | C101: Regulatory change | D101: City/regional | E101: Multiple or economy-wide | G101: Climate Mitigation | J101: (Saskatchewan): I) Postponed deadline for companies to report GHG emissions; ii) deferral environmental reporting requirements; iii) suspension of penaltities for oils/gas companis; iv) enforcement flexibility for companies breaching environmental regulations | K101: Energy Policy Tracker | L101: https://www.saskatchewan.ca/government/health-care-administration-and-provider-resources/treatment-procedures-and-guidelines/emerging-public-health-issues/2019-novel-coronavirus/covid-19-information-for-businesses-and-workers Accessed 17 June 2020 | M101: Negative | N101: Reducing burdens for industry during COVID-19 | O101: 2020-11-20 | R101: =IFERROR(Q101/VLOOKUP(P101,'Exchange rates to USD'!$L$2:$N$225,3,FALSE()),"") -> 
A102: CAN35 | B102: CAN | C102: Regulatory change | D102: City/regional | E102: Multiple or economy-wide | G102: Climate Mitigation | H102: Air Pollution | J102: (Nova Scotia) Fee deferrals for air pollution and onshore petroleum drilling applications until June 30 | K102: Energy Policy Tracker | L102: https://novascotia.ca/coronavirus/fees/ Accessed 17 June 2020 | M102: Negative | N102: Reducing burdens for industry during COVID-19 | O102: 2020-11-20 | R102: =IFERROR(Q102/VLOOKUP(P102,'Exchange rates to USD'!$L$2:$N$225,3,FALSE()),"") -> 
A103: CAN36 | B103: CAN | C103: Regulatory change | D103: City/regional | E103: Multiple or economy-wide | G103: Climate Mitigation | J103: (British Columbia): i) Increased flexibility in environmental reporting; ii) Decrease in natural gas levy; III) Deferral of carbon tax and fuel tax payments; iv) Delay in British Columbia carbon tax increase | K103: Energy Policy Tracker | L103: https://www2.gov.bc.ca/gov/content/environment/natural-resource-stewardship/natural-resource-law-enforcement/environmental-compliance/compliance-covid-19 Accessed 17 June 2020; https://www.bcogc.ca/news/natural-gas-levy-rate-change-indb-2020-13/ Accessed 17 June 2020 | M103: Negative | N103: Reducing burdens for industry during COVID-19. BC Hydro introduced deferrals for a portion of electricity bill payments for a variety of customers, including industry and coal mines. The change was originally introduced for March to May 2020. About 8% of BC Hydro's energy sources is natural gas or oil.The Province of British Columbia delayed implementation dates for changes to B.C.â€™s carbon tax. On 2 Sep 2020 it was announced that a scheduled increase in April 2020 from $40 to $45 per tonne of carbon dioxide equivalent (tCO2e) had been paused until at least October as part of the COVID-19 Action Plan. Upon review, the B.C. government has decided the carbon tax rate will remain at its current level of $40 per tCO2e until April 2021, when it will increase from $40 to $45 per tCO2e. The carbon tax will increase to $50 per tCO2e in April 2022. | O103: 2020-11-20 | R103: =IFERROR(Q103/VLOOKUP(P103,'Exchange rates to USD'!$L$2:$N$225,3,FALSE()),"") -> 
A104: CAN37 | B104: CAN | C104: Regulatory change | D104: City/regional | E104: Multiple or economy-wide | G104: Air Pollution | H104: Climate Mitigation | J104: (Alberta): i) Temporary suspension of reporting requirement for companies exceeding certain air quality guidelines; ii) Deadline extension for large, industrial GHG emitters to submit compliance reports and emissions reduction plans; iii) Reduction of environmental protections to prevent coal mining in the Foothills and Rockies; iv) Suspension of additional reporting requirements for oil, gas and coal companies; v) Utility bill payment deferral for electricity and natural gas for select consumers; vi) Extensions for oil and gas tenures by one year; vii) Temporary 90% reduction of the operating budget of Canadian Energy Centre; viii) Suspension of certain environmental reporting requirements for the Environmental Protection and Enhancement Act (EPEA), the Water Act and the Public Lands Act | K104: Energy Policy Tracker | L104: https://open.alberta.ca/publications/ministerial-order-15-2020-environment-and-parks Accessed 17 June 2020; https://web.archive.org/web/20200704000544/, https://www.alberta.ca/release.cfm?xID=72670D5511C29-EB2E-3C4B-BAF86938580C3532; https://www.aer.ca/documents/news-releases/IndustryMeasures_Table.pdf Accessed 16 June 2020 | M104: Negative | N104: Reducing burden for industry during COVID19; Facilitate coal industry activity in Alberta | O104: 2020-11-20 | R104: =IFERROR(Q104/VLOOKUP(P104,'Exchange rates to USD'!$L$2:$N$225,3,FALSE()),"") -> 
A105: CAN38 | B105: CAN | C105: Regulatory change | D105: City/regional | E105: Multiple or economy-wide | G105: Climate Mitigation | H105: Air Pollution | J105: (Newfoundland and Labrador): Extension of fuel tax exemption permits | K105: Energy Policy Tracker | L105: https://www.gov.nl.ca/releases/2020/fin/0330n03/ Accessed 16 June 2020 | M105: Negative | N105: The expiry date for Fuel Tax Exemption Permits, which allows permit holders to purchase tax-exempt marked gasoline and light fuel oil, which was set to expire on March 31, 2020 has been extended to June 30, 2020. Gasoline and carbon product retailers throughout the province are authorized to accept such permits and continue to sell marked diesel and light fuel oil exempt of gasoline and carbon tax to these permit holders up to and including June 30, 2020 | O105: 2020-11-20 | R105: =IFERROR(Q105/VLOOKUP(P105,'Exchange rates to USD'!$L$2:$N$225,3,FALSE()),"") -> 
A106: CAN39 | B106: CAN | C106: Regulatory change | D106: City/regional | E106: Multiple or economy-wide | G106: Climate Mitigation | J106: (Ontario): Fixed electricity price for all time-of-use electricity customers; Deferral of Global Adjustment charges for industrial and commercial electricity consumers | K106: Energy Policy Tracker | L106: https://news.ontario.ca/mndmf/en/2020/05/ontario-provides-consumers-with-greater-stability-and-predictability-with-their-electricity-bills.html Accessed 1 June 2020; https://news.ontario.ca/mndmf/en/2020/05/ontario-providing-support-for-industrial-and-commercial-electricity-consumers-during-covid-19.html Accessed 6 May 2020 , http://www.ieso.ca/en/Learn/Electricity-Pricing/What-is-Global-Adjustment Accessed 6 May 2020 | M106: Negative | N106: Ontario has introduced a fixed electricity price, known as the COVID-19 Recovery Rate, of 12.8 cents per kWh, which will be automatically applied to all time-of-use customers 24 hours a day, 7 days a week. This follows previous announcements related to cost relief for electricity in Ontario for residential, farm, and small business consumers announced on March 24, 2020. Defers a portion of Global Adjustment electricity charges for industrial and commercial electricity consumers that do not participate in Ontario's Regulated Price Plan. This change applies to over 50,000 companies and is estimated to prevent bill increases for Class B electricity consumers by at least 15%. Large industrial and commercial Class A consumers will receive the same percentage reduction. Global adjustment rates will be held in line with pre-COVID-19 levels. Ontario's electricity grid is mixed; only a portion of this change would represent deferrals for fossil fuel or nuclear-based energy. The government plans to recover deferred costs starting in January 2021 over a period of 12 months | O106: 2020-11-23 | R106: =IFERROR(Q106/VLOOKUP(P106,'Exchange rates to USD'!$L$2:$N$225,3,FALSE()),"") -> 
A107: CAN40 | B107: CAN | C107: Grant/Loan (including interest-free loans) | D107: Sector-specific | E107: Energy | F107: CAD 2.5 billion | G107: Climate Mitigation | H107: Air Pollution | J107: Within the framework of the Canada Infrastructure Bank’s (CIB) Growth Plan, this initiative focuses on clean power to support renewable generation and storage and to transmit clean electricity between provinces, territories, and regions, including to northern and Indigenous communities. | K107: https://cib-bic.ca/en/the-canada-infrastructure-bank-announces-a-plan-to-create-jobs-and-grow-the-economy/ | M107: Positive | N107: On 1 October, the government announced $10 billion in new major infrastructure initiatives. The Canada Infrastructure Bank’s (CIB) Growth Plan is expected to stimulate economic growth and create approximately 60,000 jobs. The three-year plan will connect more households and small businesses to high-speed Internet, strengthen Canadian agriculture, and help build a low-carbon economy. | O107: 2020-11-23 | P107: CAD | Q107: 2500 | R107: =IFERROR(Q107/VLOOKUP(P107,'Exchange rates to USD'!$L$2:$N$225,3,FALSE()),"") -> 1908.662598
A108: CAN41 | B108: CAN | C108: Grant/Loan (including interest-free loans) | D108: Sector-specific | E108: Energy | F108: CAD 2 billion | G108: Climate Mitigation | H108: Air Pollution | J108: Investment in large-scale building retrofits to increase energy efficiency and help make communities more sustainable (Financing from the Canada's Infrastructure Bank's (CIB) Growth Plan) | K108: https://cib-bic.ca/en/the-canada-infrastructure-bank-announces-a-plan-to-create-jobs-and-grow-the-economy/ | M108: Positive | N108: On 1 October, the government announced $10 billion in new major infrastructure initiatives. The Canada Infrastructure Bank’s (CIB) Growth Plan is expected to stimulate economic growth and create approximately 60,000 jobs. The three-year plan will connect more households and small businesses to high-speed Internet, strengthen Canadian agriculture, and help build a low-carbon economy. | O108: 2020-11-23 | P108: CAD | Q108: 2000 | R108: =IFERROR(Q108/VLOOKUP(P108,'Exchange rates to USD'!$L$2:$N$225,3,FALSE()),"") -> 1526.930078
A109: CAN42 | B109: CAN | C109: Grant/Loan (including interest-free loans) | D109: Sector-specific | E109: Agriculture | F109: CAD 1.5 billion | G109: Water | J109: Agriculture irrigation projects to help the agriculture sector enhance production, strengthen Canada’s food security, and expand export opportunities (Financing from the Canada's Infrastructure Bank's (CIB) Growth Plan) . | K109: https://cib-bic.ca/en/the-canada-infrastructure-bank-announces-a-plan-to-create-jobs-and-grow-the-economy/ | M109: Mixed | N109: On 1 October, the government announced $10 billion in new major infrastructure initiatives. The Canada Infrastructure Bank’s (CIB) Growth Plan is expected to stimulate economic growth and create approximately 60,000 jobs. The three-year plan will connect more households and small businesses to high-speed Internet, strengthen Canadian agriculture, and help build a low-carbon economy. | O109: 2020-11-23 | P109: CAD | Q109: 1500 | R109: =IFERROR(Q109/VLOOKUP(P109,'Exchange rates to USD'!$L$2:$N$225,3,FALSE()),"") -> 1145.197559
A110: CAN43 | B110: CAN | C110: Grant/Loan (including interest-free loans) | D110: Sector-specific | E110: Surface transport | F110: CAD 1.5 billion | G110: Climate Mitigation | H110: Air Pollution | J110: Accelerate the adoption of zero-emission buses and charging infrastructure so Canadians can have cleaner commutes (Financing from the Canada's Infrastructure Bank's (CIB) Growth Plan). | K110: https://cib-bic.ca/en/the-canada-infrastructure-bank-announces-a-plan-to-create-jobs-and-grow-the-economy/ | M110: Mixed | N110: On 1 October, the government announced $10 billion in new major infrastructure initiatives. The Canada Infrastructure Bank’s (CIB) Growth Plan is expected to stimulate economic growth and create approximately 60,000 jobs. The three-year plan will connect more households and small businesses to high-speed Internet, strengthen Canadian agriculture, and help build a low-carbon economy. | O110: 2020-11-23 | P110: CAD | Q110: 1500 | R110: =IFERROR(Q110/VLOOKUP(P110,'Exchange rates to USD'!$L$2:$N$225,3,FALSE()),"") -> 1145.197559
A111: CAN44 | B111: CAN | C111: Grant/Loan (including interest-free loans) | D111: Sectoral | E111: Energy | F111: CAD 300 million | G111: Climate Mitigation | H111: Air Pollution | J111: Second phase of Community Efficiency Financing initiative. Help homeowners cut their energy bills and emissions and keep the local economy moving | K111: https://www.canada.ca/en/office-infrastructure/news/2020/06/new-initiative-to-help-homeowners-cut-their-energy-bills-and-emissions-and-keep-the-local-economy-moving.html Accessed 10 July 2020 | M111: Mixed | N111: Second phase of the new Community Efficiency Financing initiative funded by the Government of Canada and delivered by the Federation of Canadian Municipalities (FCM). The $300-million Community Efficiency Financing initiative helps municipalities and their partners implement innovative local financing programs that help homeowners cut their greenhouse gas emissions and make homes more comfortable and affordable. Bottom-up approach to local program design, offering applicants the opportunity to study and design programs tailored to local priorities and contexts. These programs for low-rise residential properties may build on approaches such as Property Assessed Clean Energy (PACE) and utility on-bill financing. | O111: 2020-11-23 | P111: CAD | Q111: 300 | R111: =IFERROR(Q111/VLOOKUP(P111,'Exchange rates to USD'!$L$2:$N$225,3,FALSE()),"") -> 229.0395117
A112: CAN45 | B112: CAN | C112: Grant/Loan (including interest-free loans) | D112: City/regional | E112: Surface transport | F112: CAD 295 million | G112: Climate Mitigation | H112: Air Pollution | J112: Federal contribution to a $1.8 billion total public and private investment into Ford's Oakville, Ontario plant. The plant directly employs over 3,000 people and will be updated with a flexible manufacturing system able to accommodate multiple battery electric vehicle (BEV) models. It will also include the installation of a battery-pack assembly line. | K112: Energy Policy Tracker | L112: https://news.ontario.ca/en/release/58736/historic-ford-canada-investment-transforming-ontario-into-global-electric-vehicle-manufacturing-hub Accessed 13 October 2020 | M112: Mixed | N112: With this funding, the Oakville Assembly Complex is expected to become one of Ford's highest volume BEV plants in North America, with the first electric vehicles forecasted to roll off the production line in 2025. | O112: 2020-11-23 | P112: CAD | Q112: 295 | R112: =IFERROR(Q112/VLOOKUP(P112,'Exchange rates to USD'!$L$2:$N$225,3,FALSE()),"") -> 225.2221865
A113: CAN46 | B113: CAN | C113: Tax reduction / Other subsidy | D113: Sector-specific | E113: Surface transport | F113: CAD 251.1 million | G113: Climate Mitigation | H113: Air Pollution | J113: Infrastructure Canada - Funding infrastructure projects for Canadians | K113: Energy Policy Tracker | L113: https://open.canada.ca/data/en/dataset/beee0771-dab9-4be8-9b80-f8e8b3fdfd9d Last accessed 5 October 2020 | M113: Indeterminate | N113: Through the Investing in Canada plan (developed prior to COVID-19), the Government of Canada is investing over $180 billion over 12 years in infrastructure projects across Canada. This line item reflects federal investments made in public transit since the start of the pandemic. | O113: 2020-11-23 | P113: CAD | Q113: 251.1 | R113: =IFERROR(Q113/VLOOKUP(P113,'Exchange rates to USD'!$L$2:$N$225,3,FALSE()),"") -> 191.7060713
A114: CAN47 | B114: CAN | C114: Grant/Loan (including interest-free loans) | D114: Sectoral | E114: Energy | F114: CAD 57.128 | G114: Climate Mitigation | H114: Air Pollution | J114: Infrastructure Canada project funding for renewable green energy projects since March 2020 | K114: Energy Policy Tracker | L114: https://open.canada.ca/data/en/dataset/beee0771-dab9-4be8-9b80-f8e8b3fdfd9d Last accessed 1 September 2020 | M114: Mixed | N114: Through the Investing in Canada plan (developed prior to COVID-19), the Government of Canada is investing over $180 billion over 12 years in infrastructure projects across Canada. This line item reflects federal investments made in renewable energy projects (classified by government as "Green Energy") since the start of the pandemic. | O114: 2020-11-23 | P114: CAD | Q114: 57.128 | R114: =IFERROR(Q114/VLOOKUP(P114,'Exchange rates to USD'!$L$2:$N$225,3,FALSE()),"") -> 43.61523075
A115: CAN48 | B115: CAN | C115: Grant/Loan (including interest-free loans) | D115: Sector-specific | E115: Surface transport | F115: CAD 26.5 million | G115: Climate Mitigation | H115: Air Pollution | J115: Infrastructure Canada project funding for active transportation since March 2020 | K115: Energy Policy Tracker | L115: https://open.canada.ca/data/en/dataset/beee0771-dab9-4be8-9b80-f8e8b3fdfd9d Last accessed 1 September 2020 | M115: Mixed | N115: Through the Investing in Canada plan (developed prior to COVID-19), the Government of Canada is investing over $180 billion over 12 years in infrastructure projects across Canada. This line item reflects federal investments made in active transportation since the start of the pandemic. | O115: 2020-11-23 | P115: CAD | Q115: 26.5 | R115: =IFERROR(Q115/VLOOKUP(P115,'Exchange rates to USD'!$L$2:$N$225,3,FALSE()),"") -> 20.23182354
A116: CAN49 | B116: CAN | C116: Grant/Loan (including interest-free loans) | D116: Sector-specific | E116: Surface transport | F116: CAD 100 million | G116: Climate Mitigation | H116: Air Pollution | J116: Natural Resources Canada - Low Carbon Economy Fund investment in Alberta | K116: Energy Policy Tracker | L116: https://www.canada.ca/en/environment-climate-change/news/2020/11/government-of-canada-announces-over-100m-to-spur-job-creation-in-alberta-and-fight-climate-change.html Accessed 10 November 2020. | M116: Mixed | N116: A total of CAD 280 million in federal and provincial funding for three new funds have been announced: the Shovel-Ready Challenge will use up to CAD 150 million to support a call for proposals for leading-edge technologies at large industrial sites to reduce emissions; the Energy Savings for Business Program will use up to CAD 55 million to help Alberta's small and medium-sized facilities benefit from industrial and commercial projects that can be installed quickly to cut emissions; the Partnership Intake Program will use up to CAD 75 million to continue supporting emissions reduction projects that stimulate Alberta's economy. Funding comes from the industry-supported Technology Innovation and Emissions Reduction (TIER) system and the federal Low Carbon Economy Leadership Fund (LCELF). It is not currently clear what projects will be supported, although in the past, similar funding has supported projects in the oil and gas industry. As of November 9, 2020, no breakdown of how the funding will be applied is available. CAD 100 million is provided through the Low Carbon Economy Fund. | O116: 2020-11-23 | P116: CAD | Q116: 100 | R116: =IFERROR(Q116/VLOOKUP(P116,'Exchange rates to USD'!$L$2:$N$225,3,FALSE()),"") -> 76.34650391
A117: CAN50 | B117: CAN | C117: R&D subsidies | D117: Sectoral | E117: Surface transport | F117: CAD 100 million | G117: Climate Mitigation | H117: Air Pollution | J117: Support oil and gas sector to rebound, create good jobs for workers and reduce its carbon footprint. | K117: Energy Policy Tracker | L117: https://www.canada.ca/en/innovation-science-economic-development/news/2020/10/government-of-canada-invests-in-clean-technology-ecosystems.html Accessed 27 October 2020. | M117: Positive | N117: The investment will help the Clean Resource Innovation Network (CRIN) accelerate the development and adoption of innovative technologies and processes that seek to lower the oil and gas industry's environmental impacts. Through this investment, CRIN aims to reduce the sectorâ€™s greenhouse gas emissions by 100 megatons by 2033.economy. | O117: 2020-11-23 | P117: CAD | Q117: 100 | R117: =IFERROR(Q117/VLOOKUP(P117,'Exchange rates to USD'!$L$2:$N$225,3,FALSE()),"") -> 76.34650391
A118: CAN51 | B118: CAN | C118: Grant/Loan (including interest-free loans) | D118: City/regional | E118: Energy | F118: CAD 93 million | G118: Climate Mitigation | H118: Air Pollution | J118: Government of Alberta - Loan guarantee for investment in Clean Resource Innovation Network, exploration or production or processing or storage or transportation | K118: Energy Policy Tracker | L118: https://www.theaioc.com/about/news/alberta-indigenous-opportunities-corporation-announces-first-participation-in-cascade-power-project/ | M118: Mixed | N118: The Alberta Indigenous Opportunities Corporation (AIOC) announced its first commitment: a loan guarantee to a consortium of six Alberta First Nations to enable their participation in the Cascade Power Project (Cascade). Cascade is a 900MW combined cycle natural gas fired power plant located near Edson, AB. | O118: 2020-11-23 | P118: CAD | Q118: 93 | R118: =IFERROR(Q118/VLOOKUP(P118,'Exchange rates to USD'!$L$2:$N$225,3,FALSE()),"") -> 71.00224864
A119: CAN52 | B119: CAN | C119: Grant/Loan (including interest-free loans) | D119: City/regional | E119: Energy | F119: CAD 18.3 million | G119: Climate Mitigation | H119: Air Pollution | J119: Funding for South Baffin Energy Management Project | K119: Energy Policy Tracker | L119: https://www.canada.ca/en/environment-climate-change/news/2020/08/government-of-canada-partners-with-nunavut-for-renewable-and-energy-efficiency-projects.html Accessed 25 August 2020 | M119: Positive | N119: This project, funded through the Low Carbon Economy Fund, will help improve energy efficiency and introduce renewable energy in 45 buildings owned by the Government of Nunavut in the six communities that make up the South Baffin region. The South Baffin Energy Management Project will receive approximately $18.3 million through the Low Carbon Economy Leadership Fund. The Government of Nunavuta's Department of Community and Government Services is also contributing $8.6 million. | O119: 2020-11-23 | P119: CAD | Q119: 18.3 | R119: =IFERROR(Q119/VLOOKUP(P119,'Exchange rates to USD'!$L$2:$N$225,3,FALSE()),"") -> 13.97141022
A120: CAN53 | B120: CAN | C120: Tax reduction / Other subsidy | D120: City/regional | E120: Energy | F120: CAD 17 million | G120: Climate Mitigation | H120: Air Pollution | J120: (Manitoba&Saskatchewan - Funding for school energy efficiency and retrofits-Environment and Climate Change Canada | K120: Energy Policy Tracker | L120: https://www.canada.ca/en/environment-climate-change/news/2020/09/canada-supports-energy-efficiency-projects-in-saskatchewan-schools.html , https://www.canada.ca/en/environment-climate-change/news/2020/09/canada-supports-energy-efficiency-projects-in-manitoba-schools.html , https://www.canada.ca/en/environment-climate-change/services/climate-change/carbon-pollution-pricing-proceeds-programming/climate-action-incentive-fund/municipalities-universities-schools-hospitals.html Accessed 21 September 2020 | M120: Positive | N120: On June 25, 2019, the Minister of Environment and Climate Change announced the Municipalities, Universities, Schools and Hospitals (MUSH) Retrofit stream of the Climate Action Incentive Fund. The first round of funding, announced in September, includes approximately CAD 12 million for Saskatchewan and CAD 5 million for Manitoba. | O120: 2020-11-23 | P120: CAD | Q120: 17 | R120: =IFERROR(Q120/VLOOKUP(P120,'Exchange rates to USD'!$L$2:$N$225,3,FALSE()),"") -> 12.97890566
A121: CAN54 | B121: CAN | C121: R&D subsidies | D121: Sectoral | E121: Multiple or economy-wide | F121: CAD 16.2 million | G121: Climate Mitigation | H121: Air Pollution | J121: SDTC funding for cleantech projects for energy efficiency and low-emissions vehicle cleantech projects | K121: Energy Policy Tracker | L121: https://www.canada.ca/en/innovation-science-economic-development/news/2020/09/list-of-cleantech-projects-receiving-funding-from-sustainable-development-technology-canada-sdtc.html Accessed 21 September 2020 | M121: Positive | N121: As part of a series of funding announcements for Sustainable Development Technology Canada, this includes funding for several cleantech projects that support energy efficiency in water treatement, mining operations, and electric vehicles. (CAD 2.8 million to Pani Energy, CAD 5.6 million to Motion Metrics International Corp, CAD 1.4 million to Swirltex Inc., CAD 2.4 mmillion in Inmotive Inc., CAD 4 million to Soleco Energie Inc.) | O121: 2020-11-23 | P121: CAD | Q121: 16.2 | R121: =IFERROR(Q121/VLOOKUP(P121,'Exchange rates to USD'!$L$2:$N$225,3,FALSE()),"") -> 12.36813363
A122: CAN55 | B122: CAN | C122: Tax reduction / Other subsidy | D122: Sector-specific | E122: Energy | F122: CAD 15.7 milllion | G122: Climate Mitigation | H122: Air Pollution | J122: Funding for the conversion of the aluminum plant's anode baking furnaces (Aluminerie Alouette) from fuel oil to liquefied natural gas. | K122: Energy Policy Tracker | L122: http://www.fil-information.gouv.qc.ca/Pages/Article.aspx?Page=2&idArticle=2810232141 Accessed 26 October 2020. | M122: Mixed | O122: 2020-11-23 | P122: CAD | Q122: 15.7 | R122: =IFERROR(Q122/VLOOKUP(P122,'Exchange rates to USD'!$L$2:$N$225,3,FALSE()),"") -> 11.98640111
A123: CAN56 | B123: CAN | C123: Tax reduction / Other subsidy | D123: City/regional | E123: Surface transport | F123: CAD 12 million | G123: Climate Mitigation | J123: (BC and/or Alberta) Indigenous Natural Resources Partnership in the field of exploration or production or processing or storage or transportation- Increase the participation of Indigenous communities and organizations in oil and gas infrastructure development. | K123: Energy Policy Tracker | L123: https://www.canada.ca/en/natural-resources-canada/news/2020/11/government-of-canada-extends-funding-to-increase-indigenous-participation-in-oil-and-gas-infrastructure-development.html , https://www.nrcan.gc.ca/our-natural-resources/indigenous-natural-resources/indigenous-natural-resource-partnerships/22197 | M123: Mixed | N123: For Indigenous communities and organizations in British Columbia and Alberta to further increase their participation in economic opportunities related to oil and gas infrastructure development. This announcement extends the 2019â€“20 Indigenous Natural Resource Partnerships program | O123: 2020-11-23 | P123: CAD | Q123: 12 | R123: =IFERROR(Q123/VLOOKUP(P123,'Exchange rates to USD'!$L$2:$N$225,3,FALSE()),"") -> 9.161580469
A124: CAN57 | B124: CAN | C124: Grant/Loan (including interest-free loans) | D124: City/regional | E124: Multiple or economy-wide | F124: CAD 10 million | G124: Climate Mitigation | J124: (Ontario) FedDev Ontario investment in biodiesel - exploration or production or processing or storage or transportation | K124: Energy Policy Tracker | L124: https://www.canada.ca/en/economic-development-southern-ontario/news/2020/07/two-renewable-fuel-producers-scale-up-to-increase-productivity-and-economic-growth-in-rural-southwestern-ontario.html | M124: Mixed | N124: Support the scale-up and growth of two renewable fuel producers in the Ontario: FORGE Hydrocarbons and IGPC Ethanol Inc. | O124: 2020-11-23 | P124: CAD | Q124: 10 | R124: =IFERROR(Q124/VLOOKUP(P124,'Exchange rates to USD'!$L$2:$N$225,3,FALSE()),"") -> 7.634650391
A125: CAN58 | B125: CAN | C125: R&D subsidies | D125: Sectoral | E125: Energy | F125: CAD 9.4 million | G125: Climate Mitigation | J125: Funding for four tidal energy projects through NRCan's Energy Innovation, Clean Growth, and Emerging Renewables Power programs | K125: Energy Policy Tracker | L125: https://www.canada.ca/en/natural-resources-canada/news/2020/09/government-invests-in-canadas-tidal-power-industry | M125: Positive | N125: $4 million to Nova Innovation to build a tidal turbine array using sub-sea tidal technology in Petit Passage in the Bay of Fundy. $1.58 million to the University of Manitoba, in partnership with SOAR's Sustainable Oceans Applied Research, to advance research on river hydrokinetic and in-stream tidal energy technologies in the Canadian context. $2 million to Offshore Energy Research Association of Nova Scotia to research an environmental effects monitoring solution for the instream tidal energy industry in Canada, including fish and marine mammal interactions with tidal devices. $2 million to Fundy Ocean Research Centre for Energy to outline a plan to assess the encounter risk for fish with tidal devices and create a tool to support the regulatory authorization process for tidal energy projects. | O125: 2020-11-23 | P125: CAD | Q125: 9.4 | R125: =IFERROR(Q125/VLOOKUP(P125,'Exchange rates to USD'!$L$2:$N$225,3,FALSE()),"") -> 7.176571368
A126: CAN59 | B126: CAN | C126: Tax reduction / Other subsidy | D126: City/regional | E126: Energy | F126: CAD 8 million | G126: Climate Mitigation | H126: Air Pollution | J126: (Northern Territories) This funding will support communities in their efforts to build a cleaner future and reduce their reliance on diesel fuel for heat and power while creating jobs | K126: Energy Policy Tracker | L126: https://www.canada.ca/en/natural-resources-canada/news/2020/09/canada-invests-in-clean-energy-projects-in-the-northwest-territories.html | M126: Positive | O126: 2020-11-23 | P126: CAD | Q126: 8 | R126: =IFERROR(Q126/VLOOKUP(P126,'Exchange rates to USD'!$L$2:$N$225,3,FALSE()),"") -> 6.107720313
A127: CAN60 | B127: CAN | C127: R&D subsidies | D127: City/regional | E127: Energy | F127: CAD 7.348 million | G127: Air Pollution | H127: Climate Mitigation | J127: (Québec)-Investment in 30 projects relating to the adoption and development of clean technologies in Quebec. | K127: Energy Policy Tracker | L127: https://www.canada.ca/en/economic-development-quebec-regions/news/2020/07/investment-in-clean-technologies-for-a-sustainable-future.html | M127: Positive | O127: 2020-11-23 | P127: CAD | Q127: 7.348 | R127: =IFERROR(Q127/VLOOKUP(P127,'Exchange rates to USD'!$L$2:$N$225,3,FALSE()),"") -> 5.609941107
A128: CAN61 | B128: CAN | C128: R&D subsidies | D128: City/regional | E128: Energy | F128: CAD 6 million | G128: Climate Mitigation | J128: (Alberta) Support R&D on the detection and mitigation of methane emissions from oil and gas | K128: Energy Policy Tracker | L128: https://www.canada.ca/en/natural-resources-canada/news/2020/07/canada-invests-in-clean-technology-for-albertas-natural-resources-sectors.html | M128: Positive | N128: An investment of $6 million, as part of the Canadian Emissions Reduction Innovation Network (CERIN) initiative, to the Petroleum Technology Alliance of Canada (PTAC) and Canadian Gas Association (CGA), through their Natural Gas Innovation Fund, to support their work in the oil and gas sector. These investments will inform protocols and standards for the detection and mitigation of methane emissions that will become the benchmark for Canada and the world. Through strong industry collaboration these investments will help Canada better understand and reduce methane emissions. | O128: 2020-11-23 | P128: CAD | Q128: 6 | R128: =IFERROR(Q128/VLOOKUP(P128,'Exchange rates to USD'!$L$2:$N$225,3,FALSE()),"") -> 4.580790235
A129: CAN62 | B129: CAN | C129: Tax reduction / Other subsidy | D129: City/regional | E129: Energy | F129: CAD 5.1 million | G129: Climate Mitigation | J129: (Ontario) Smart Grid technology investment in London Hydro | K129: Energy Policy Tracker | L129: https://www.canada.ca/en/natural-resources-canada/news/2020/07/canada-invests-in-smart-grid-technology-for-london-net-zero-energy-community.html | M129: Positive | N129: To develop and deploy a smart microgrid in the West 5 net-zero energy community in London, Ontario. The microgrid will integrate monitoring, data management and communications, electric vehicle infrastructure, distributed energy resource management, solar power generation and batteries to reduce grid use. | O129: 2020-11-23 | P129: CAD | Q129: 5.1 | R129: =IFERROR(Q129/VLOOKUP(P129,'Exchange rates to USD'!$L$2:$N$225,3,FALSE()),"") -> 3.893671699
A130: CAN63 | B130: CAN | C130: Tax reduction / Other subsidy | D130: Sectoral | E130: Energy | F130: CAD 5 million | G130: Climate Mitigation | J130: Federal Funding for Biocarbon Briquettes for Ferroalloy Production | K130: Energy Policy Tracker | L130: https://www.canada.ca/en/natural-resources-canada/news/2020/09/canada-invests-in-clean-technology-solutions-in-quebec.html | M130: Positive | N130: Federal government funding for the manufacturing of biocarbon briquettes, a renewable alternative to metallurgical coal that can reduce the environmental impact of foundries and steelworks. Elkem MÃ©tal Canada Inc. intends to replace 43,000 tonnes of metallurgical coal per year, used at its Chicoutimi plant in Quebec, with 37,000 tonnes of bio-briquette (biocarbon) for a potential reduction of 100 ktonnes of CO2 eq/yr for Elkem MÃ©tal Canada. Elkem is a company specializing in the manufacturing of a ferroalloy used in the foundry and steel mill industry, and the briquettes will be made from forest biomass, reducing waste in the forestry sector. This is a second generation biofuel. | O130: 2020-11-23 | P130: CAD | Q130: 5 | R130: =IFERROR(Q130/VLOOKUP(P130,'Exchange rates to USD'!$L$2:$N$225,3,FALSE()),"") -> 3.817325196
A131: CAN64 | B131: CAN | C131: Tax reduction / Other subsidy | D131: City/regional | E131: Energy | F131: CAD 4.5 million | G131: Climate Mitigation | J131: Federal investment in Quebec Bioenergy | K131: Energy Policy Tracker | L131: https://www.canada.ca/en/natural-resources-canada/news/2020/09/canada-invests-in-bioenergy-in-quebec.html | M131: Mixed | N131: $4.5 million federal government spending in CRB Innovations for second generation forest-based bioenergy, with the aim of energy efficiency and GHG reduction by converting forest residues to biofuels and bioplastics. Through Natural Resources Canada Clean Growth Program. | O131: 2020-11-23 | P131: CAD | Q131: 4.5 | R131: =IFERROR(Q131/VLOOKUP(P131,'Exchange rates to USD'!$L$2:$N$225,3,FALSE()),"") -> 3.435592676
A132: CAN65 | B132: CAN | C132: Tax reduction / Other subsidy | D132: Sectoral | E132: Energy | F132: CAD 4 million | G132: Climate Mitigation | J132: Funding for Algoma Steel's climate action initiatives | K132: Energy Policy Tracker | L132: https://www.canada.ca/en/environment-climate-change/news/2020/08/government-of-canada-announces-support-for-algoma-steels-climate-action-initiatives.html | M132: Mixed | N132: The integrated steel producer Algoma Steel will use the funding to improve both the tar-removal and light-oil-recovery areas of its coke-making plant in Sault Ste. Marie, Ontario. This project is funded through the Low Carbon Economy Fund. The coke-making process of steel production generates a variety of by-products including coke-oven gas, various tars, and light oil. By using updated equipment to capture and remove by-products suspended in coke-oven gas, a steel manufacturer can reduce its greenhouse gas emissions, reduce local air pollution, and re-use captured fuel. | O132: 2020-11-23 | P132: CAD | Q132: 4 | R132: =IFERROR(Q132/VLOOKUP(P132,'Exchange rates to USD'!$L$2:$N$225,3,FALSE()),"") -> 3.053860156
A133: CAN66 | B133: CAN | C133: R&D subsidies | D133: City/regional | E133: Energy | F133: CAD 3 million | G133: Climate Mitigation | J133: (Alberta) Support SMEs to adopt clean tech | K133: Energy Policy Tracker | L133: https://www.canada.ca/en/western-economic-diversification/news/2020/09/government-of-canada-invests-in-albertas-construction-industry-to-help-strengthen-energy-efficiency-and-green-building-practices.html | M133: Mixed | N133: To help Alberta's construction and engineering industry by supporting small and medium-sized businesses adopt new products and technologies that improve the energy efficiency of buildings and reduce greenhouse gas emissions | O133: 2020-11-23 | P133: CAD | Q133: 3 | R133: =IFERROR(Q133/VLOOKUP(P133,'Exchange rates to USD'!$L$2:$N$225,3,FALSE()),"") -> 2.290395117
A134: CAN67 | B134: CAN | C134: Tax reduction / Other subsidy | D134: City/regional | E134: Energy | F134: CAD 2 milion | G134: Climate Mitigation | J134: (City of Calgary) Support of Natural Resources Canada to biomass production and carbon sequestration project | K134: Energy Policy Tracker | L134: https://www.canada.ca/en/environment-climate-change/news/2020/08/government-of-canada-reducing-emissions-in-calgary-by-expanding-the-willow-plantation.html | M134: Mixed | N134: To support the City of Calgary's biomass production and carbon sequestration project. This initiative will reduce emissions by planting 300 new hectares of trees over three years at the City's successful willow plantation. The plantation will use municipal biosolids as fertilizer and will help create a carbon-storage sink that leads to fewer greenhouse gas emissions. Funding provided through the Low Carbon Economy Fund. | O134: 2020-11-23 | P134: CAD | Q134: 2 | R134: =IFERROR(Q134/VLOOKUP(P134,'Exchange rates to USD'!$L$2:$N$225,3,FALSE()),"") -> 1.526930078
A135: CAN68 | B135: CAN | C135: R&D subsidies | D135: Sectoral | E135: Energy | F135: CAD 1.717 milion | G135: Climate Mitigation | J135: Funding for research for electric and alternative fuel vehicles | K135: Energy Policy Tracker | L135: https://www.canada.ca/en/natural-resources-canada/news/2020/09/investing-in-canadas-zero-emission-vehicle-sector | M135: Positive | N135: Investment to the CSA Group to support a project to research, develop, adapt and update codes and standards for electric and alternative fuel vehicles and infrastructure. | O135: 2020-11-23 | P135: CAD | Q135: 1.717 | R135: =IFERROR(Q135/VLOOKUP(P135,'Exchange rates to USD'!$L$2:$N$225,3,FALSE()),"") -> 1.310869472
A136: CAN69 | B136: CAN | C136: R&D subsidies | D136: Sectoral | E136: Surface transport | F136: CAD 0.57 million | G136: Air Pollution | J136: Encourage economic growth and climate action through investment for the development of electric vehicles | K136: Energy Policy Tracker | L136: https://www.canada.ca/en/natural-resources-canada/news/2020/11/new-electric-vehicle-chargers-coming-to-york-region.html ; https://www.canada.ca/en/natural-resources-canada/news/2020/08/new-electric-vehicle-chargers-coming-to-oakville.html | M136: Positive | N136: Electric vehicles: i) 0.35 CAD million for the York Municipality (build 70 electric vehicle level 2 chargers); ii) 0.22 CAD million in in high-traffic spaces of Oakville (EV charges), project funded by Natural Resources Canada's Zero-Emission Vehicle Infrastructure Program. | O136: 2020-11-23 | P136: CAD | Q136: 0.57 | R136: =IFERROR(Q136/VLOOKUP(P136,'Exchange rates to USD'!$L$2:$N$225,3,FALSE()),"") -> 0.4351750723
A137: CAN70 | B137: CAN | C137: R&D subsidies | D137: Sectoral | E137: Energy | F137: CAD 1.1 million | G137: Climate Mitigation | J137: Funding to reduce emissions from Toront's emergency response vehicles | K137: Energy Policy Tracker | L137: https://www.canada.ca/en/environment-climate-change/news/2020/08/government-of-canada-supports-innovative-climate-action-by-the-city-of-toronto.html | M137: Mixed | N137: This investment, through the Low Carbon Economy Fund, will go toward installing solar panels on the roofs of 215 ambulances and more than 60 emergency paramedic response units, which will power and recharge critical on-board medical equipment. The funding will also help install a hybrid electric drivetrain system in more than 100 ambulances to save fuel and reduce emissions. This will allow the City of Toronto to reduce its greenhouse gas emissions by an amount equivalent to removing approximately 2,900 passenger cars off the road for one year. | O137: 2020-11-23 | P137: CAD | Q137: 1 | R137: =IFERROR(Q137/VLOOKUP(P137,'Exchange rates to USD'!$L$2:$N$225,3,FALSE()),"") -> 0.7634650391
A138: CAN71 | B138: CAN | C138: Regulatory change | D138: City/regional | E138: Energy | G138: Climate Mitigation | J138: (Alberta) Approval of NOVA Gas Transmission Ltd. expansion project: create jobs, support recovery and help phase out coal-powered electricity. | K138: Energy Policy Tracker | L138: https://www.canada.ca/en/natural-resources-canada/news/2020/10/government-of-canada-approves-the-nova-gas-transmission-ltd-2021-system-expansion-project.html | M138: Mixed | N138: The Government of Canada has approved the NOVA Gas Transmission Ltd. (NGTL) 2021 System Expansion Project with 35 conditions, and amendments to the Canada Energy Regulator's conditions for approval related to caribou and Indigenous engagement. The $2.3-billion project has been touted for creating 2,920 jobs and giving natural gas producers better access to markets for their products. | O138: 2020-11-24 | P138: CAD | Q138: 1 | R138: =IFERROR(Q138/VLOOKUP(P138,'Exchange rates to USD'!$L$2:$N$225,3,FALSE()),"") -> 0.7634650391
A139: CAN72 | B139: CAN | C139: Tax reduction / Other subsidy | D139: City/regional | E139: Energy | F139: CAD 5.4 million | G139: Climate Mitigation | J139: (Yukon) Support for clean energy projects and job creation | K139: Energy Policy Tracker | L139: https://www.canada.ca/en/natural-resources-canada/news/2020/09/government-invests-in-clean-energy-initiatives-in-yukon.html | M139: Mixed | N139: Five community-led clean energy projects from the Clean Energy for Rural and Remote Communities program supporting communities reducing their reliance on diesel fuel for heat and power while creating jobs. | O139: 2020-11-24 | P139: CAD | Q139: 5.4 | R139: =IFERROR(Q139/VLOOKUP(P139,'Exchange rates to USD'!$L$2:$N$225,3,FALSE()),"") -> 4.122711211
A140: CAN73 | B140: CAN | C140: Regulatory change | D140: Sectoral | E140: Multiple or economy-wide | G140: Climate Mitigation | J140: Delay of publication and implementation of the Clean Fuel Standard | K140: Energy Policy Tracker | L140: https://www.canada.ca/en/environment-climate-change/services/managing-pollution/energy-production/fuel-regulations/clean-fuel-standard.html | M140: Negative | N140: The Clean Fuel Standard will contribute to reduce GHG emissions through the increased use of lower-carbon fuels, energy sources, and technologies. | O140: 2020-11-24 | P140: CAD | R140: =IFERROR(Q140/VLOOKUP(P140,'Exchange rates to USD'!$L$2:$N$225,3,FALSE()),"") -> 0
A141: CAN74 | B141: CAN | C141: Regulatory change | D141: Sectoral | E141: Industry | G141: Air Pollution | H141: Climate Mitigation | J141: Extension of deadline for pollution data reporting by industry to reduce burdens for industry during COVID-19. | K141: Energy Policy Tracker | L141: https://www.canada.ca/en/services/environment/pollution-waste-management/national-pollutant-release-inventory.html; https://www.canada.ca/en/environment-climate-change/services/climate-change/greenhouse-gas-emissions/facility-reporting/reporting.html | M141: Negative | N141: The deadlines for industry reporting on: i) National Pollutant Release Inventory data and ii) GHG emissions have been extended to July 31, 2020 | O141: 2020-11-24 | P141: CAD | R141: =IFERROR(Q141/VLOOKUP(P141,'Exchange rates to USD'!$L$2:$N$225,3,FALSE()),"") -> 0
A142: CHL1 | B142: CHL | C142: Grant/Loan (including interest-free loans) | D142: Economy-wide | E142: Multiple or economy-wide | F142: USD 4.5 million | G142: Climate Mitigation | H142: Water | I142: Adaptation | J142: As a part of the programme "Paso a paso Chile se recupera", Chile intends to add USD 4.5 million to the Ministries' regular budget. This sum will raise total public investment to USD 34 million, which will be spent within 24 months. The plan seeks to respond to several social and environmental challenges. 30% of the projects (not necessarily of the funds) will be invested to accelerate Chile's climate mitigation and adaptation efforts and to support sustainable development, on the basis of the country's new NDC and of the Climate Bond Initiative (CBI) classification (that corresponds to the green investment framework of Chilean sovereign green bonds). The projects will enhance (1) water management (focusing on the modernization of irrigation plants, rainwater conservation, flood control, drought resilience, improved water treatment, improved access to drinking water, etc.), (2) green urban mobility (extension of the metro system, railways, electric buses, public transport routes, bicycle lanes), (3) reforestation (reforesting 24.1 ha with a focus on wildfire management), (4) urban greening, (5) public infrastructure (focus on coastal and fluvial climate-resilient infrastructure and on the energy efficiency of public buildings) and (6) sustainable local development (including local strategic plans for water resources; energy efficiency of housing). | K142: https://www.gob.cl/chileserecupera/ | M142: Positive | N142: The implementation of the plan will involve the Ministry of Public works and infrastructure, the Ministry of Transport and telecommunications, the Ministry of Housing and Urbanism, the Ministry of Agriculture, the Interior Ministry and the Ministry of Sports. | O142: 2020-11-08 | P142: USD | Q142: 4500 | R142: =IFERROR(Q142/VLOOKUP(P142,'Exchange rates to USD'!$L$2:$N$225,3,FALSE()),"") -> 4500
A143: CHL2 | B143: CHL | C143: Tax reduction / Other subsidy | E143: Multiple or economy-wide | F143: Minimum USD 35 millon in 2020 and USD 75 millons in 2021 | G143: Other | J143: Corporate income tax (CIT) rate reduction to incentivise environmentally-friendly investments: 1% regional contribution to new investment in fixed assets above USD 10 millons, if approved by the System of Environmental Impact Assessment (Sistema de Evaluación de Impacto Ambiental). Valid for projects submitted until 31 December 2021. | K143: Ley de Modernización Tributaria: https://modernizaciontributaria.hacienda.cl/mas-recursos-para-chile | M143: Positive | O143: 2020-11-05 | P143: USD | Q143: 75 | R143: =IFERROR(Q143/VLOOKUP(P143,'Exchange rates to USD'!$L$2:$N$225,3,FALSE()),"") -> 75
A144: CHL3 | B144: CHL | C144: Regulatory change | D144: Sectoral | E144: Energy | G144: Climate Mitigation | H144: Air Pollution | J144: Suspension of peak hour charge for electricity bills | M144: Indeterminate | O144: 2020-11-05 | R144: =IFERROR(Q144/VLOOKUP(P144,'Exchange rates to USD'!$L$2:$N$225,3,FALSE()),"") -> 
A145: CHL4 | B145: CHL | C145: Regulatory change | D145: Sectoral | E145: Surface transport | G145: Air Pollution | H145: Climate Mitigation | J145: Postponement of the otherwise mandatory annual vehicle inspection and circulation permit | K145: https://www.chileatiende.gob.cl/fichas/23978-revision-tecnica-de-vehiculos-motorizados | M145: Negative | O145: 2020-11-05 | R145: =IFERROR(Q145/VLOOKUP(P145,'Exchange rates to USD'!$L$2:$N$225,3,FALSE()),"") -> 
A146: CHL5 | B146: CHL | C146: Grant/Loan (including interest-free loans) | D146: Sectoral | E146: Surface transport | F146: CLP 5 million | G146: Climate Mitigation | H146: Air Pollution | J146: National Mobility Plan: Work with Municipalities to implement tactical urbanism initiatives | M146: Positive | O146: 2021-01-07 | P146: CLP | Q146: 5000 | R146: =IFERROR(Q146/VLOOKUP(P146,'Exchange rates to USD'!$L$2:$N$225,3,FALSE()),"") -> 8.031370187
A147: CHL6 | B147: CHL | C147: Grant/Loan (including interest-free loans) | D147: Sectoral | E147: Surface transport | F147: CLP 26 million | J147: State Support Bonus and Solidarity Loan: Economic benefit to owners of buses, minibuses, cabs (urban and rural) | M147: Indeterminate | O147: 2021-01-07 | P147: CLP | Q147: 26000 | R147: =IFERROR(Q147/VLOOKUP(P147,'Exchange rates to USD'!$L$2:$N$225,3,FALSE()),"") -> 41.76312497
A148: CHL7 | B148: CHL | C148: Other or not specified | D148: Economy-wide | E148: Agriculture | F148: USD 455 million | G148: Water | H148: Adaptation | I148: Climate Mitigation | J148: Hydraulic Projects: Irrigation works that will benefit more than 125 thousand hectares, conservation of rainwater in cities and alluvial controls. | K148: https://www.gob.cl/chileserecupera/ | M148: Positive | N148: These projects contemplate the improvement of irrigation systems to increase water use efficiency and water savings. Likewise, this will increase the country's resilience or capacity to face the impacts of climate change, in the context of a mega drought that has affected Chile for over a decade. | O148: 2021-01-07 | P148: USD | Q148: 455 | R148: =IFERROR(Q148/VLOOKUP(P148,'Exchange rates to USD'!$L$2:$N$225,3,FALSE()),"") -> 455
A149: CHL8 | B149: CHL | C149: Other or not specified | D149: Economy-wide | E149: Multiple or economy-wide | F149: USD 481 million | G149: Water | H149: Adaptation | I149: Climate Mitigation | J149: Rural Drinking Water systems: 75 new systems, 69 improvements and extensions of systems, and minor conservation of another 44 systems. | K149: https://www.gob.cl/chileserecupera/ | M149: Indeterminate | N149: These projects will provide or improve access to water for vulnerable families in our country, particularly in rural areas. | O149: 2021-01-07 | P149: USD | Q149: 481 | R149: =IFERROR(Q149/VLOOKUP(P149,'Exchange rates to USD'!$L$2:$N$225,3,FALSE()),"") -> 481
A150: CHL9 | B150: CHL | C150: Other or not specified | D150: Economy-wide | E150: Surface transport | F150: USD 376 million | G150: Adaptation | H150: Climate Mitigation | I150: Water | J150: Roads: Construction, replacement and improvement of 93 bridges, and construction of 62 kilometers of bicycle lanes. | K150: https://www.gob.cl/chileserecupera/ | M150: Mixed | N150: The design and implementation of these projects considering sustainable engineering, materials, and location aspects, among others, will contribute to climate change adaptation measures in facing events of river flooding, intensity of rainfalls, and probability of floodings, among others. | O150: 2021-01-07 | P150: USD | Q150: 376 | R150: =IFERROR(Q150/VLOOKUP(P150,'Exchange rates to USD'!$L$2:$N$225,3,FALSE()),"") -> 376
A151: CHL10 | B151: CHL | C151: Other or not specified | D151: Economy-wide | E151: Multiple or economy-wide | F151: USD 235 million | G151: Adaptation | H151: Climate Mitigation | I151: Water | J151: Coastal and riverside projects: Construction, conservation, improvement and extension of more than 35 works on coastal and riversides. | K151: https://www.gob.cl/chileserecupera/ | M151: Positive | N151: The design and implementation of these projects considering sustainable engineering, materials, and location aspects, among others; will allow adaptation to the effects of climate change such as the frequency and intensity of storm surges, sea level, intensity of rainfall, etc; allowing to increase the resilience or reaction capacity of the communities and activities that will be affected. | O151: 2021-01-07 | P151: USD | Q151: 235 | R151: =IFERROR(Q151/VLOOKUP(P151,'Exchange rates to USD'!$L$2:$N$225,3,FALSE()),"") -> 235
A152: CHL11 | B152: CHL | C152: Other or not specified | D152: Economy-wide | E152: Multiple or economy-wide | F152: USD 39 million | G152: Water | H152: Adaptation | I152: Climate Mitigation | J152: Water Management: Development of 50 strategic plans for the management of water resources, of which 30 will be ready between 2020-2022; and strengthening of the national hydrometric and glaciological network. | K152: https://www.gob.cl/chileserecupera/ | M152: Positive | N152: The design and implementation of these plans and tools will consider the effects of climate change with respect to temperatures, drought, intensity of rainfall, among others; allowing to increase the resilience or reaction capacity of the communities and activities that will be affected. | O152: 2021-01-07 | P152: USD | Q152: 39 | R152: =IFERROR(Q152/VLOOKUP(P152,'Exchange rates to USD'!$L$2:$N$225,3,FALSE()),"") -> 39
A153: CHL12 | B153: CHL | C153: Other or not specified | D153: Economy-wide | E153: Buildings | F153: USD 403 million | G153: Adaptation | H153: Other | J153: Public Buildings: Construction, replacement and improvement of more than 280.000 m2 in public building projects such as police stations, schools, health centers, museums, theaters, and town hall buildings, among others. | K153: https://www.gob.cl/chileserecupera/ | M153: Indeterminate | N153: These projects contemplate energy efficiency standards contributing to the reduction in the consumption of electrical energy or fuel, contributing to the mitigation of climate change. | O153: 2021-01-07 | P153: USD | Q153: 403 | R153: =IFERROR(Q153/VLOOKUP(P153,'Exchange rates to USD'!$L$2:$N$225,3,FALSE()),"") -> 403
A154: COL1 | B154: COL | C154: Other or not specified | D154: Economy-wide | E154: Multiple or economy-wide | G154: Water | J154: Water pricing frozen, and reconnecting the water service to people who had it suspended for non-payment (benefits more than 1 million people), collection of water purification and wastewater treatment fees suspended until 30 May. | K154: https://coronaviruscolombia.gov.co/Covid19/acciones/acciones-de-servicios-publicos.html | M154: Indeterminate | N154: In addition, in cities with more that 5 000 users, disinfection will be carried out once a weekto prevent the spread of the vrus. | O154: 2020-11-19 | R154: =IFERROR(Q154/VLOOKUP(P154,'Exchange rates to USD'!$L$2:$N$225,3,FALSE()),"") -> 
A155: COL2 | B155: COL | C155: Tax reduction / Other subsidy | E155: Multiple or economy-wide | J155: Increasing the budget (USD 375 thousand) for all the existing subsidies to poor families (Elderly, Youth in Action, and Families in Action programmes) and additional and extraordinary non-conditional payments | M155: Indeterminate | R155: =IFERROR(Q155/VLOOKUP(P155,'Exchange rates to USD'!$L$2:$N$225,3,FALSE()),"") -> 
A156: COL3 | B156: COL | C156: Tax reduction / Other subsidy | E156: Multiple or economy-wide | J156: New and temporal (until June 2021) subsidy for informal workers not receiving other types of existing subsidies (Ingreso Solidario) in place until the end of 2020, | M156: Indeterminate | R156: =IFERROR(Q156/VLOOKUP(P156,'Exchange rates to USD'!$L$2:$N$225,3,FALSE()),"") -> 
A157: COL4 | B157: COL | C157: Other or not specified | E157: Multiple or economy-wide | J157: Evictions are suspended and rental payments cannot be increased; poorest households can differ the payment of public services in 36 months without interests | M157: Indeterminate | R157: =IFERROR(Q157/VLOOKUP(P157,'Exchange rates to USD'!$L$2:$N$225,3,FALSE()),"") -> 
A158: COL5 | B158: COL | C158: Tax reduction / Other subsidy | E158: Multiple or economy-wide | J158: Goverment finances the salaries of workers in SMEs for three months (for worker up to 5 minimum wages) since 13 April; subsidy of 40% of the minimum wage for firms with at least 20% reduction in turnover from May | M158: Indeterminate | R158: =IFERROR(Q158/VLOOKUP(P158,'Exchange rates to USD'!$L$2:$N$225,3,FALSE()),"") -> 
A159: COL6 | B159: COL | C159: Tax reduction / Other subsidy | E159: Multiple or economy-wide | G159: Climate Mitigation | H159: Biodiversity | J159: A period of grace and refinancing of credits for companies and individuals; change in the calendar for PIT payments (delayed until the end of 2020); extension of payment deadlines of CIT; extension of VAT deadline payment for taxpayers providing hotel and commercial passenger air transport services, theatrical activities and live shows; for taxpayers providing hotel and commercial passenger air transport services, theatrical activities and live shows extension of payment deadlines of parafiscal contribution for the promotion of tourism; a financial relief to SMEs having difficulties with their credits in the next 2 months;eliminating VAT and import tariffs on health equipment and aviation; suspension of social contributions (employer and employee) for 3 monthss; specific measures to support the culture and creativity sectors (orange economy); | M159: Indeterminate | R159: =IFERROR(Q159/VLOOKUP(P159,'Exchange rates to USD'!$L$2:$N$225,3,FALSE()),"") -> 
A160: COL7 | B160: COL | C160: Grant/Loan (including interest-free loans) | E160: Multiple or economy-wide | F160: COP 60 billion | G160: Climate Mitigation | H160: Biodiversity | J160: New subsidized credit line with a capped quota of COP 250 billion aimed at the tourism, aviation and public events sectors and additional COP 350 billion for other sectors; | M160: Negative | P160: COP | Q160: 60000 | R160: =IFERROR(Q160/VLOOKUP(P160,'Exchange rates to USD'!$L$2:$N$225,3,FALSE()),"") -> 20.83084172
A161: COL8 | B161: COL | C161: Other or not specified | D161: Economy-wide | E161: Surface transport | G161: Climate Mitigation | J161: reduction of the gasoline price; | M161: Negative | R161: =IFERROR(Q161/VLOOKUP(P161,'Exchange rates to USD'!$L$2:$N$225,3,FALSE()),"") -> 
A162: COL9 | B162: COL | C162: Tax reduction / Other subsidy | E162: Multiple or economy-wide | F162: COP 70 billion | J162: the Government injected 70 billion pesos (7% of GDP) into the National Guarantee Fund to channel loans to the companies and people most affected by the fall in their income | M162: Indeterminate | P162: COP | Q162: 70000 | R162: =IFERROR(Q162/VLOOKUP(P162,'Exchange rates to USD'!$L$2:$N$225,3,FALSE()),"") -> 24.30264867
A163: COL10 | B163: COL | C163: Grant/Loan (including interest-free loans) | E163: Multiple or economy-wide | J163: guarantees to finance 3 months salaries of MSMEs up to 5 minimum wages, as long as no worker is fired; and special credit line to own accountant workers. | M163: Indeterminate | R163: =IFERROR(Q163/VLOOKUP(P163,'Exchange rates to USD'!$L$2:$N$225,3,FALSE()),"") -> 
A164: COL11 | B164: COL | C164: Other or not specified | D164: Economy-wide | E164: Multiple or economy-wide | J164: Increased quotas of the daily auctions to increase liquidity in the market and announced an asset purchase program (public or corporate debt securities); the Central Bank cut the policy rate by 150 basic points to 2.75% during march, april and may meetings | M164: Indeterminate | R164: =IFERROR(Q164/VLOOKUP(P164,'Exchange rates to USD'!$L$2:$N$225,3,FALSE()),"") -> 
A165: COL12 | B165: COL | C165: Other or not specified | D165: Economy-wide | E165: Multiple or economy-wide | J165: On April 15th, reduced required reserves, injecting liquidity by COP 9 trillion | M165: Indeterminate | R165: =IFERROR(Q165/VLOOKUP(P165,'Exchange rates to USD'!$L$2:$N$225,3,FALSE()),"") -> 
A166: COL13 | B166: COL | C166: Other or not specified | E166: Multiple or economy-wide | J166: Vulnerable families can suspend the payment of public services for the month of April. | M166: Indeterminate | R166: =IFERROR(Q166/VLOOKUP(P166,'Exchange rates to USD'!$L$2:$N$225,3,FALSE()),"") -> 
A167: COL14 | B167: COL | C167: Other or not specified | D167: Sectoral | E167: Energy | F167: COP 16 billion | G167: Climate Mitigation | J167: Commitment to invest in 9 wind, 5 solar, 3 thermal and 1 hydropower projects, as well as 9 transmission lines. The investment is part of the "commitment to clean and sustainable growth" | L167: https://id.presidencia.gov.co/Paginas/prensa/2020/COMPROMISO-POR-COLOMBIA-Transicion-energetica-y-crecimiento-limpio-en-el-foco-del-Gobierno-para-proximos-dos-anios-200807.aspx | M167: Mixed | O167: 2020-11-05 | P167: COP | Q167: 16000 | R167: =IFERROR(Q167/VLOOKUP(P167,'Exchange rates to USD'!$L$2:$N$225,3,FALSE()),"") -> 5.554891124
A168: COL15 | B168: COL | C168: Other or not specified | D168: Sectoral | E168: Agriculture | G168: Biodiversity | H168: Climate Mitigation | J168: Goal to plant 180 million trees through incentives for silvopastoralism and agroforestry with community support | L168: https://id.presidencia.gov.co/Paginas/prensa/2020/Nace-el-nuevo-Compromiso-por-el-Futuro-de-Colombia-200807.aspx | M168: Positive | N168: Goal was announced in January at Davos and I believe independent of COVID-19. It has now been reaffirmed in the new Compromiso por el Futuro de Colombia | O168: 2020-11-06 | R168: =IFERROR(Q168/VLOOKUP(P168,'Exchange rates to USD'!$L$2:$N$225,3,FALSE()),"") -> 
A169: COL16 | B169: COL | C169: Other or not specified | D169: Economy-wide | E169: Multiple or economy-wide | F169: COP 1.5 trillion | G169: Climate Mitigation | H169: Biodiversity | J169: Accelerate infrastructure projects including ports, airports, aqueducts and treatment plants and fourth and fifth generation highways. Conclude development of 14 national roads, 8 regional ones and initiate 22 highway projects | L169: https://id.presidencia.gov.co/Paginas/prensa/2020/Nace-el-nuevo-Compromiso-por-el-Futuro-de-Colombia-200807.aspx | M169: Negative | N169: Linear infrastructure often has biodiversity impacts and if facilitates increased commuting then potential GHG emissions increase? Note this is another commitment outlined by President in the Compromiso por el Futuro de Colombia | O169: 2020-11-07 | P169: COP | Q169: 1500000 | R169: =IFERROR(Q169/VLOOKUP(P169,'Exchange rates to USD'!$L$2:$N$225,3,FALSE()),"") -> 520.7710429
A170: COL17 | B170: COL | C170: Regulatory change | D170: Economy-wide | E170: Multiple or economy-wide | G170: Climate Mitigation | H170: Biodiversity | I170: Water | J170: Accelerate ratification of Escazu Agreement: Regional Agreement on Access to Information, Public Participation and Justice in Environmental Matters in Latin America and the Caribbean | L170: https://id.presidencia.gov.co/Paginas/prensa/2020/Nace-el-nuevo-Compromiso-por-el-Futuro-de-Colombia-200807.aspx | M170: Indeterminate | N170: another commitment outlined by President in the Compromiso por el Futuro de Colombia | O170: 2020-11-08 | R170: =IFERROR(Q170/VLOOKUP(P170,'Exchange rates to USD'!$L$2:$N$225,3,FALSE()),"") -> 
A171: COL18 | B171: COL | C171: Regulatory change | D171: Sectoral | E171: Industry | G171: Biodiversity | H171: Water | I171: Climate Mitigation | J171: Proposal for new legislation to combat illegal mining | L171: https://id.presidencia.gov.co/Paginas/prensa/2020/Nace-el-nuevo-Compromiso-por-el-Futuro-de-Colombia-200807.aspx | M171: Positive | O171: 2020-11-09 | R171: =IFERROR(Q171/VLOOKUP(P171,'Exchange rates to USD'!$L$2:$N$225,3,FALSE()),"") -> 
A172: COL19 | B172: COL | C172: Other or not specified | D172: Economy-wide | G172: Climate Mitigation | H172: Adaptation | J172: Accelerate construction of Dique canal to adapt to flood risk and improve navigation | L172: https://id.presidencia.gov.co/Paginas/prensa/2020/Nace-el-nuevo-Compromiso-por-el-Futuro-de-Colombia-200807.aspx | M172: Mixed | O172: 2020-11-10 | R172: =IFERROR(Q172/VLOOKUP(P172,'Exchange rates to USD'!$L$2:$N$225,3,FALSE()),"") -> 
A173: COL20 | B173: COL | C173: Other or not specified | D173: Sectoral | E173: Multiple or economy-wide | G173: Biodiversity | H173: Climate Mitigation | J173: Commitment to improve the sustainability of mining and energy sectors (although also plan to continue exploration) | L173: https://id.presidencia.gov.co/Paginas/prensa/2020/Nace-el-nuevo-Compromiso-por-el-Futuro-de-Colombia-200807.aspx | M173: Mixed | O173: 2020-11-11 | R173: =IFERROR(Q173/VLOOKUP(P173,'Exchange rates to USD'!$L$2:$N$225,3,FALSE()),"") -> 
A174: COL21 | B174: COL | C174: Grant/Loan (including interest-free loans) | D174: Sectoral | E174: Agriculture | G174: Biodiversity | H174: Other | J174: "Colombia Agro Produce credit", allowing farmers to benefit from lower interest rates (3.5% small producers; 4.5% medium-large producers) up to a3 years, one year grace. Finacial aid will be provided for farmers over 70s not covered by other government programs. | L174: https://coronaviruscolombia.gov.co/Covid19/acciones/acciones-de-agricultura.html | M174: Mixed | N174: Goal announced on 01/04/2020 | O174: 2020-11-19 | R174: =IFERROR(Q174/VLOOKUP(P174,'Exchange rates to USD'!$L$2:$N$225,3,FALSE()),"") -> 
A175: COL22 | B175: COL | C175: Tax reduction / Other subsidy | E175: Multiple or economy-wide | G175: Water | J175: Direct subsidies to rural and community aqueducts (COP 14 400/month per user) guaranteeing access to drinking water and basic sanitation and reducing related bills. The 1,621 rural operators registered with the Superintendency of Public Services may apply to this subsidy | L175: https://coronaviruscolombia.gov.co/Covid19/acciones/acciones-de-servicios-publicos.html | M175: Positive | N175: Decree 819, 4 June 2020 | O175: 2020-11-20 | R175: =IFERROR(Q175/VLOOKUP(P175,'Exchange rates to USD'!$L$2:$N$225,3,FALSE()),"") -> 
A176: CZE1 | B176: CZE | C176: Grant/Loan (including interest-free loans) | D176: Sectoral | E176: Agriculture | F176: 3.3 billion CZK | J176: The Government has released 3.3 billion CZK for the 2020 Rural Development Program. This funding should help entrepreneurs in agriculture, food and forestry while fighting coronavirus crisis. The main reason for this support is to secure Czech food self-sufficiency. | K176: https://www.vlada.cz/en/media-centrum/aktualne/measures-adopted-by-the-czech-government-against-coronavirus-180545/ | M176: Indeterminate | P176: CZK | Q176: 3300 | R176: =IFERROR(Q176/VLOOKUP(P176,'Exchange rates to USD'!$L$2:$N$225,3,FALSE()),"") -> 146.5969129
A177: CZE2 | B177: CZE | C177: Tax reduction / Other subsidy | D177: Sectoral | E177: Surface transport | G177: Climate Mitigation | J177: A bill on an anti-crisis tax package to help the most affected sectors has been adopted, which includes the reduction to 25 percent in road tax on lorries over 3.5 tonnes, shortens the deadline for refunding the overpayment of excise duty on so-called "green diesel" | M177: Negative
A178: CZE3 | B178: CZE | C178: Grant/Loan (including interest-free loans) | D178: Sectoral | E178: Multiple or economy-wide | F178: 6.5 billion CZK | J178: The preparation of state orders for transport infrastructure - for maintenance, repairs or new investments has been approved. Through the State Fund for Transport Infrastructure, the state will spend 6.5 billion CZK in excess of the current budget. The contractual deadlines for these contracts were also extended. | M178: Indeterminate | P178: CZK | Q178: 6500 | R178: =IFERROR(Q178/VLOOKUP(P178,'Exchange rates to USD'!$L$2:$N$225,3,FALSE()),"") -> 288.7514952
A179: DNK1 | B179: DNK | C179: Tax reduction / Other subsidy | D179: Sectoral | E179: Buildings | F179: 72000000 | G179: Climate Mitigation | J179: Green transition of individual heating further by increasing the phasing out of oil and gas boilers | K179: Agreement between the government and the Radical Left, the Socialist People's Party, the Unity List and the Alternative on: Finance Act for 2021 (December 6, 2020) Aftale mellem regeringen og Radikale Venstre, Socialistisk Folkeparti, Enhedslisten og Alternativet om: Finansloven for 2021 (6. december 2020) | M179: Positive | N179: A total of DKK 225 million is set aside. in 2021, DKK 225 million. in 2022, DKK 145 million. DKK in 2023, DKK 155 million. DKK in 2024 and DKK 60 million. DKK in 2025 for the subsidy pools for phasing out oil and gas boilers, which were agreed with the Climate Agreement for energy and industry, etc. 2020 and the follow-up agreement of 30 October 2020. | O179: 2020-12-09 | P179: DKK | Q179: 450 | R179: =IFERROR(Q179/VLOOKUP(P179,'Exchange rates to USD'!$L$2:$N$225,3,FALSE()),"") -> 66.39435919
A180: DNK2 | B180: DNK | C180: Tax reduction / Other subsidy | D180: Sectoral | E180: Transport | F180: 32000000 | G180: Climate Mitigation | H180: Air Pollution | J180: Strengthen the transition to green transport by setting aside a pool to support initiatives that can contribute to the green transition of the transport sector, eg electric ferries, the spread of charging infrastructure, conversion of heavy transport, etc. | K180: Agreement between the government and the Radical Left, the Socialist People's Party, the Unity List and the Alternative on: Finance Act for 2021 (December 6, 2020) Aftale mellem regeringen og Radikale Venstre, Socialistisk Folkeparti, Enhedslisten og Alternativet om: Finansloven for 2021 (6. december 2020) | M180: Positive | N180: A total of DKK 150 million is set aside. DKK 2021, DKK 50 million. DKK in 2022 and DKK 10 million. DKK annually in 2023-2025. The allocated funds include derived tax losses. | O180: 2020-12-09 | P180: DKK | Q180: 200 | R180: =IFERROR(Q180/VLOOKUP(P180,'Exchange rates to USD'!$L$2:$N$225,3,FALSE()),"") -> 29.50860408
A181: DNK3 | B181: DNK | C181: Tax reduction / Other subsidy | D181: Sectoral | E181: Buildings | F181: 8000000 | G181: Climate Mitigation | J181: The pool for sustainable construction must go to concrete efforts that help to support a greener and more sustainable and quality-conscious construction that is at the same time financially sustainable. | K181: Agreement between the government and the Radical Left, the Socialist People's Party, the Unity List and the Alternative on: Finance Act for 2021 (December 6, 2020) Aftale mellem regeringen og Radikale Venstre, Socialistisk Folkeparti, Enhedslisten og Alternativet om: Finansloven for 2021 (6. december 2020) | M181: Positive | N181: DKK 25 million is set aside. DKK annually in 2021 and in 2022. | O181: 2020-12-09 | P181: DKK | Q181: 50 | R181: =IFERROR(Q181/VLOOKUP(P181,'Exchange rates to USD'!$L$2:$N$225,3,FALSE()),"") -> 7.377151021
A182: DNK4 | B182: DNK | C182: R&D subsidies | D182: Sectoral | E182: Energy | F182: 32000000 | G182: Climate Mitigation | J182: The purpose is, among other things, to promote the development of safe storage of CO2 in the North Sea as early as 2025. | K182: Agreement between the government and the Radical Left, the Socialist People's Party, the Unity List and the Alternative on: Finance Act for 2021 (December 6, 2020) Aftale mellem regeringen og Radikale Venstre, Socialistisk Folkeparti, Enhedslisten og Alternativet om: Finansloven for 2021 (6. december 2020) | M182: Positive | O182: 2020-12-09 | P182: DKK | Q182: 200 | R182: =IFERROR(Q182/VLOOKUP(P182,'Exchange rates to USD'!$L$2:$N$225,3,FALSE()),"") -> 29.50860408
A183: DNK5 | B183: DNK | C183: Tax reduction / Other subsidy | D183: Economy-wide | E183: Multiple or economy-wide | F183: 32000000 | G183: Adaptation | H183: Biodiversity | J183: To increase and extend the state pool for coastal protection projects and expand the criteria for relevant applicants. Several projects will thus be eligible for the pool. | K183: Agreement between the government and the Radical Left, the Socialist People's Party, the Unity List and the Alternative on: Finance Act for 2021 (December 6, 2020) Aftale mellem regeringen og Radikale Venstre, Socialistisk Folkeparti, Enhedslisten og Alternativet om: Finansloven for 2021 (6. december 2020) | M183: Positive | N183: A total of DKK 50 million is set aside. DKK in 2021, which will bring the total pool in 2021 to 90 mill. DKK in 2021. 150 mill. DKK annually in 2022 and 2023. | O183: 2020-12-09 | P183: DKK | Q183: 200 | R183: =IFERROR(Q183/VLOOKUP(P183,'Exchange rates to USD'!$L$2:$N$225,3,FALSE()),"") -> 29.50860408
A184: DNK6 | B184: DNK | C184: Tax reduction / Other subsidy | D184: City/regional | E184: Surface transport | F184: 56000000 | G184: Climate Mitigation | H184: Air Pollution | J184: The construction of cycle paths along the state roads. It must support the citizens' access to a more coherent cycle path and thereby better opportunities to choose the bicycle over other modes of transport. In addition, DKK 150 million will be set aside. DKK in 2021 for a pool of targeted municipal bicycle projects. Municipal co-financing of 50 per cent is assumed. of the construction cost. The municipal contribution will have to be prioritized within the municipalities' construction framework. | K184: Agreement between the government and the Radical Left, the Socialist People's Party, the Unity List and the Alternative on: Finance Act for 2021 (December 6, 2020) Aftale mellem regeringen og Radikale Venstre, Socialistisk Folkeparti, Enhedslisten og Alternativet om: Finansloven for 2021 (6. december 2020) | M184: Positive | N184: A total of DKK 180 million is set aside. DKK in 2021 and 170 mill. DKK annually in 2022-2023 for cycling. | O184: 2020-12-09 | P184: DKK | Q184: 350 | R184: =IFERROR(Q184/VLOOKUP(P184,'Exchange rates to USD'!$L$2:$N$225,3,FALSE()),"") -> 51.64005714
A185: DNK7 | B185: DNK | C185: Tax reduction / Other subsidy | D185: City/regional | E185: Buildings | F185: 48000000 | G185: Climate Mitigation | J185: strengthen municipalities and regions' ability to make their buildings more energy efficient | K185: Agreement between the government and the Radical Left, the Socialist People's Party, the Unity List and the Alternative on: Finance Act for 2021 (December 6, 2020) Aftale mellem regeringen og Radikale Venstre, Socialistisk Folkeparti, Enhedslisten og Alternativet om: Finansloven for 2021 (6. december 2020) | M185: Positive | N185: A total of DKK 150 million is set aside. DKK annually in 2021-2022 and 5 mill. DKK annually from 2023. | O185: 2020-12-09 | P185: DKK | Q185: 300 | R185: =IFERROR(Q185/VLOOKUP(P185,'Exchange rates to USD'!$L$2:$N$225,3,FALSE()),"") -> 44.26290612
A186: DNK8 | B186: DNK | C186: R&D subsidies | D186: Sectoral | E186: Agriculture | F186: 32000000 | G186: Climate Mitigation | J186: The pool will contribute to the promotion and demonstration of new technologies that aim to reduce greenhouse gas emissions from agriculture, for example in brown biorefining. With the technology "brown" biorefining, residual and waste products from agriculture and the waste sector are utilized, such as manure, straw, sewage sludge and residual fibers from biogas production. Through the use of thermal pyrolysis technology, the biomass can be converted into gas and oil that can be refined into liquid fuels such as aviation fuel. The pool must target cost-effective technologies with great reduction potential in the agricultural sector. | K186: Agreement between the government and the Radical Left, the Socialist People's Party, the Unity List and the Alternative on: Finance Act for 2021 (December 6, 2020) Aftale mellem regeringen og Radikale Venstre, Socialistisk Folkeparti, Enhedslisten og Alternativet om: Finansloven for 2021 (6. december 2020) | M186: Mixed | N186: DKK 100 million is set aside. DKK annually in 2021 and 2022 for the pool. Environmental impact mix. Does this create land use changes? In addition, it is unclear if these technologies reduce GHG emissions significantly. They might be substitute for fossil based fuels which means GHG saving on the production phase of the feedstock but not on the consumption phase. | O186: 2020-12-09 | P186: DKK | Q186: 200 | R186: =IFERROR(Q186/VLOOKUP(P186,'Exchange rates to USD'!$L$2:$N$225,3,FALSE()),"") -> 29.50860408
A187: DNK9 | B187: DNK | C187: Tax reduction / Other subsidy | D187: Sectoral | E187: Buildings | F187: 52000000 | G187: Climate Mitigation | J187: The funds strengthen the green transition by supporting energy efficiency improvements in year-round homes. Public housing, ie. public housing associations, can apply for funds from the Building Fund on the basis of objective criteria and on an equal footing with other building owners, so that tenants can also benefit from energy renovations. | K187: Agreement between the government and the Radical Left, the Socialist People's Party, the Unity List and the Alternative on: Finance Act for 2021 (December 6, 2020) Aftale mellem regeringen og Radikale Venstre, Socialistisk Folkeparti, Enhedslisten og Alternativet om: Finansloven for 2021 (6. december 2020) | M187: Positive | N187: A total of DKK 300 million is set aside. DKK in 2021 and 25 mill. DKK annually from 2022. The funds are incl. derived from poison loss. | O187: 2020-12-09 | P187: DKK | Q187: 325 | R187: =IFERROR(Q187/VLOOKUP(P187,'Exchange rates to USD'!$L$2:$N$225,3,FALSE()),"") -> 47.95148163
A188: DNK10 | B188: DNK | C188: Tax reduction / Other subsidy | D188: Sectoral | E188: Agriculture | F188: Between 26 million and 106 million | G188: Climate Mitigation | J188: By removing lowland soils and restoring natural water levels in the areas, greenhouse gas emissions are reduced. For the allocated funds, approx. 5,000 hectares of agricultural land, which is estimated to contribute to a total climate effect of almost 75,000 tonnes of CO2e in 2030. | K188: Agreement between the government and the Radical Left, the Socialist People's Party, the Unity List and the Alternative on: Finance Act for 2021 (December 6, 2020) Aftale mellem regeringen og Radikale Venstre, Socialistisk Folkeparti, Enhedslisten og Alternativet om: Finansloven for 2021 (6. december 2020) | M188: Positive | N188: to set aside a total of DKK 660 million. DKK in the period 2021-2024 for extraction of carbon-rich agricultural land. A total of DKK 165 million is set aside. DKK annually in 2021-2024 for set-aside of agricultural land. | O188: 2020-12-09 | P188: DKK | Q188: Between 165 million and 660 million | R188: 26
A189: DNK11 | B189: DNK | C189: Tax reduction / Other subsidy | D189: Sectoral | E189: Energy | F189: 960000 | G189: Climate Mitigation | J189: agree to support the development of geothermal energy as a technology in the district heating sector of the future by setting up a geothermal task force. The task force will be tasked with carrying out an analysis work to uncover the socio-economic potential for fitting geothermal heat into the district heating sector. can obtain state aid approval under EU state aid rules | K189: Agreement between the government and the Radical Left, the Socialist People's Party, the Unity List and the Alternative on: Finance Act for 2021 (December 6, 2020) Aftale mellem regeringen og Radikale Venstre, Socialistisk Folkeparti, Enhedslisten og Alternativet om: Finansloven for 2021 (6. december 2020) | M189: Positive | N189: total of DKK 3 million is set aside. DKK annually in 2021 and 2022 for the task force. The parties to the agreement will be presented with the results of the task force's work in 2022. | O189: 2020-12-09 | P189: DKK | Q189: 6 | R189: =IFERROR(Q189/VLOOKUP(P189,'Exchange rates to USD'!$L$2:$N$225,3,FALSE()),"") -> 0.8852581225
A190: DNK12 | B190: DNK | C190: Tax reduction / Other subsidy | D190: City/regional | E190: Multiple or economy-wide | F190: 16000000 | G190: Climate Mitigation | J190: to support the fact that more households and companies across the country have access to fast broadband. The COVID-19 crisis has also highlighted the importance of fast broadband. In this connection, the broadband pool can contribute to improved broadband coverage in those areas where the market does not by itself ensure sufficient rollout. | K190: Agreement between the government and the Radical Left, the Socialist People's Party, the Unity List and the Alternative on: Finance Act for 2021 (December 6, 2020) Aftale mellem regeringen og Radikale Venstre, Socialistisk Folkeparti, Enhedslisten og Alternativet om: Finansloven for 2021 (6. december 2020) | M190: Mixed | N190: Access to broadband increase the volume of data which ultimatly increase GHG emission. On the other hand, digitalisation can save GHG emissions by decreasing travel demand. | O190: 2020-12-09 | P190: DKK | Q190: 100 | R190: =IFERROR(Q190/VLOOKUP(P190,'Exchange rates to USD'!$L$2:$N$225,3,FALSE()),"") -> 14.75430204
A191: DNK13 | B191: DNK | C191: Tax reduction / Other subsidy | D191: Economy-wide | E191: Multiple or economy-wide | F191: 40000000 | G191: Climate Mitigation | J191: It can contribute to the development of new digital solutions, partly by supporting a more cohesive and efficient public sector, which holds potential in supporting Denmark's ambitions in the climate area. And partly by supporting the digitalisation and automation of the business community to strengthen the competitiveness of Danish companies and for the benefit of growth, employment and export opportunities. | K191: Agreement between the government and the Radical Left, the Socialist People's Party, the Unity List and the Alternative on: Finance Act for 2021 (December 6, 2020) Aftale mellem regeringen og Radikale Venstre, Socialistisk Folkeparti, Enhedslisten og Alternativet om: Finansloven for 2021 (6. december 2020) | M191: Mixed | N191: Digitalisation increase the volume of data which ultimatly increase GHG emission. On the other hand, digitalisation can save GHG emissions by decreasing travel demand or the use of material resources. | O191: 2020-12-09 | P191: DKK | Q191: 250 | R191: =IFERROR(Q191/VLOOKUP(P191,'Exchange rates to USD'!$L$2:$N$225,3,FALSE()),"") -> 36.8857551
A192: DNK14 | B192: DNK | C192: Tax reduction / Other subsidy | D192: Sectoral | E192: Industry | F192: 133280000 | G192: Climate Mitigation | H192: Waste & recycling | I192: Air Pollution | J192: The program will enable SMEs to receive funding for advice on green and digital transformation, growth advice and business development, as well as the purchase of specific technology, production equipment, software, etc., which can contribute to the transformation of the company, including green transformation. | K192: Agreement between the government and the Radical Left, the Socialist People's Party, the Unity List and the Alternative on: Finance Act for 2021 (December 6, 2020) Aftale mellem regeringen og Radikale Venstre, Socialistisk Folkeparti, Enhedslisten og Alternativet om: Finansloven for 2021 (6. december 2020) | M192: Positive | N192: A total of DKK 825 million is set aside. DKK distributed with 300 mill. DKK in 2021 and 525 mill. DKK in 2022 and associated administrative funds. In addition, DKK 8 million is set aside. DKK distributed with 4 mill. DKK in 2021 and 4 mill. DKK in 2022 to the green entrepreneurship panel. | O192: 2020-12-09 | P192: DKK | Q192: 833 | R192: =IFERROR(Q192/VLOOKUP(P192,'Exchange rates to USD'!$L$2:$N$225,3,FALSE()),"") -> 122.903336
A193: DNK15 | B193: DNK | C193: Regulatory change | D193: Economy-wide | E193: Multiple or economy-wide | F193: 16320000 | G193: Climate Mitigation | H193: Waste & recycling | I193: Air Pollution | J193: insured unemployed people over the age of 30, who are unskilled or skilled with an outdated education, will have the right to start a SOSU assistant basic education in 2021 with 110 pct. of their previous unemploymenC16t benefit rate. At the same time, the positive list is expanded by 6 per cent. for educations that support a green transition in the labor market. | K193: Agreement between the government and the Radical Left, the Socialist People's Party, the Unity List and the Alternative on: Finance Act for 2021 (December 6, 2020) Aftale mellem regeringen og Radikale Venstre, Socialistisk Folkeparti, Enhedslisten og Alternativet om: Finansloven for 2021 (6. december 2020) | M193: Positive | N193: The impact will be positive. If labor with green skill is available, green sector will thrive more. A total of DKK 120 million is set aside DKK for strengthened recruitment of SOSU assistants and for green jobs in 2021-2022. Of this, the extension of the right to 110 per cent. unemployment benefit rate additional expenses of DKK 84 million. DKK in 2021 and 18 mill. in 2022 after tax, setbacks and behavior. The measure has less positive qualifying effects in the following years. | O193: 2020-12-09 | P193: DKK | Q193: 102 | R193: =IFERROR(Q193/VLOOKUP(P193,'Exchange rates to USD'!$L$2:$N$225,3,FALSE()),"") -> 15.04938808
A194: DNK16 | B194: DNK | C194: Tax reduction / Other subsidy | D194: Economy-wide | E194: Multiple or economy-wide | F194: 4800000 | J194: to raise the grant for the regional education pool and initiate a one-year trial with a right for the individual unemployed to a job-oriented course from the first day of unemployment via the regional education pool. | K194: Agreement between the government and the Radical Left, the Socialist People's Party, the Unity List and the Alternative on: Finance Act for 2021 (December 6, 2020) Aftale mellem regeringen og Radikale Venstre, Socialistisk Folkeparti, Enhedslisten og Alternativet om: Finansloven for 2021 (6. december 2020) | M194: Indeterminate | N194: It is not targeted at green jobs. DKK 30 million is set aside. DKK in 2021 for the regional education pool. Thereby, the pool will amount to a total of 285 million. DKK in 2021 and will contribute to more people being able to quickly and flexibly be transferred to new jobs and industries | O194: 2020-12-09 | P194: DKK | Q194: 30 | R194: =IFERROR(Q194/VLOOKUP(P194,'Exchange rates to USD'!$L$2:$N$225,3,FALSE()),"") -> 4.426290612
A195: DNK17 | B195: DNK | C195: Tax reduction / Other subsidy | D195: Economy-wide | E195: Multiple or economy-wide | F195: 16000000 | J195: need to strengthen the warning efforts in 2021 as a result of the COVID-19 crisis, so that dismissed employees can quickly be helped into new employment with an early and focused effort. | K195: Agreement between the government and the Radical Left, the Socialist People's Party, the Unity List and the Alternative on: Finance Act for 2021 (December 6, 2020) Aftale mellem regeringen og Radikale Venstre, Socialistisk Folkeparti, Enhedslisten og Alternativet om: Finansloven for 2021 (6. december 2020) | M195: Indeterminate | N195: It is not targeted at green jobs. DKK 100 million is set aside. DKK in 2021 for the purpose. Thus, the warning pool will amount to DKK 106 million. in 2021. | O195: 2020-12-09 | P195: DKK | Q195: 100 | R195: =IFERROR(Q195/VLOOKUP(P195,'Exchange rates to USD'!$L$2:$N$225,3,FALSE()),"") -> 14.75430204
A196: DNK18 | B196: DNK | C196: Tax reduction / Other subsidy | D196: City/regional | E196: Multiple or economy-wide | F196: 4000000 | G196: Climate Mitigation | H196: Biodiversity | I196: Plastics | J196: to set aside DKK 25 million. DKK in 2021 for green conversion of ports and conversion efforts within, for example, fishing and related ancillary activities. The Danish ports have set a goal of becoming CO2-neutral by 2030, at the same time as 90 per cent. of all waste in the ports will be recycled in 2030. In order to support restructuring and development efforts within the fishing industry and related follow-up industries, a pool will be created that can be applied for by ports, fishing and follow-up industries to co-finance projects concerning eg conversion and green development. | K196: Agreement between the government and the Radical Left, the Socialist People's Party, the Unity List and the Alternative on: Finance Act for 2021 (December 6, 2020) Aftale mellem regeringen og Radikale Venstre, Socialistisk Folkeparti, Enhedslisten og Alternativet om: Finansloven for 2021 (6. december 2020) | M196: Positive | O196: 2020-12-09 | P196: DKK | Q196: 25 | R196: =IFERROR(Q196/VLOOKUP(P196,'Exchange rates to USD'!$L$2:$N$225,3,FALSE()),"") -> 3.68857551
A197: DNK19 | B197: DNK | C197: Tax reduction / Other subsidy | D197: City/regional | E197: Multiple or economy-wide | F197: 4000000 | J197: contribute to good living conditions for citizens in the villages by, for example, maintaining local jobs, local leisure activities, etc. In addition, the pool can also support the villages and smaller urban communities where the mink industry has been of particular importance. | K197: Agreement between the government and the Radical Left, the Socialist People's Party, the Unity List and the Alternative on: Finance Act for 2021 (December 6, 2020) Aftale mellem regeringen og Radikale Venstre, Socialistisk Folkeparti, Enhedslisten og Alternativet om: Finansloven for 2021 (6. december 2020) | M197: Indeterminate | N197: It is not targeted at green activites. | O197: 2020-12-09 | P197: DKK | Q197: 25 | R197: =IFERROR(Q197/VLOOKUP(P197,'Exchange rates to USD'!$L$2:$N$225,3,FALSE()),"") -> 3.68857551
A198: DNK20 | B198: DNK | C198: Tax reduction / Other subsidy | D198: City/regional | E198: Multiple or economy-wide | F198: 4000000 | J198: to support village renewal, which i.a. may include the renewal of streets, squares and squares, the initiation of social or cultural activities, the renovation of dilapidated dwellings or town halls, and the demolition and removal of scrap on residential properties. The village renewal is implemented in the municipalities eligible for application. | K198: Agreement between the government and the Radical Left, the Socialist People's Party, the Unity List and the Alternative on: Finance Act for 2021 (December 6, 2020) Aftale mellem regeringen og Radikale Venstre, Socialistisk Folkeparti, Enhedslisten og Alternativet om: Finansloven for 2021 (6. december 2020) | M198: Indeterminate | N198: It is not targeted at green activites. | O198: 2020-12-09 | P198: DKK | Q198: 25 | R198: =IFERROR(Q198/VLOOKUP(P198,'Exchange rates to USD'!$L$2:$N$225,3,FALSE()),"") -> 3.68857551
A199: DNK21 | B199: DNK | C199: Tax reduction / Other subsidy | D199: Economy-wide | E199: Multiple or economy-wide | F199: 32000000 | G199: Climate Mitigation | H199: Biodiversity | I199: Plastics | J199: DKK 100 million is therefore set aside. DKK annually in 2021-2022 for an application pool for upskilling and continuing education within climate adaptation and green change in a broad sense. The funds can be applied for by educational institutions, possibly. after dialogue with continuing education committees and the professional committees for either a quality and equipment boost of existing qualification and continuing education offers or the development of new educations targeted at job functions and industries within green conversion as well as initiatives with a view to increased sustainability. | K199: Agreement between the government and the Radical Left, the Socialist People's Party, the Unity List and the Alternative on: Finance Act for 2021 (December 6, 2020) Aftale mellem regeringen og Radikale Venstre, Socialistisk Folkeparti, Enhedslisten og Alternativet om: Finansloven for 2021 (6. december 2020) | M199: Positive | N199: DKK 100 million is therefore set aside. DKK annually in 2021-2022 | O199: 2020-12-09 | P199: DKK | Q199: 200 | R199: =IFERROR(Q199/VLOOKUP(P199,'Exchange rates to USD'!$L$2:$N$225,3,FALSE()),"") -> 29.50860408
A200: DNK22 | B200: DNK | C200: Other or not specified | D200: Economy-wide | E200: Multiple or economy-wide | F200: 16000000 | G200: Biodiversity | J200: Strengthened public efforts are targeted as far as possible in areas where, for a period of time, benefits can be achieved through an upscaled effort, and where there are good preconditions for using temporary resources. As a starting point, the strengthening will aim at strengthened infection detection and extra efforts under the Danish Nature Agency, including strengthening outdoor facilities in nature areas, nature conservation tasks with a view to strengthening nature and biodiversity and green building initiatives on the Danish Nature Agency's properties. | K200: Agreement between the government and the Radical Left, the Socialist People's Party, the Unity List and the Alternative on: Finance Act for 2021 (December 6, 2020) Aftale mellem regeringen og Radikale Venstre, Socialistisk Folkeparti, Enhedslisten og Alternativet om: Finansloven for 2021 (6. december 2020) | M200: Positive | O200: 2020-12-09 | P200: DKK | Q200: 100 | R200: =IFERROR(Q200/VLOOKUP(P200,'Exchange rates to USD'!$L$2:$N$225,3,FALSE()),"") -> 14.75430204
... 658 more rows

Sheet Exchange rates to USD
G1: 2019 EXCHANGE RATES | J1: ISO | K1: COUNTRY | L1: natcurrency_code | M1: y2019 | N1: y2020
J2: AUS | K2: Australia | L2: AUD | M2: 1.438506961 | N2: 1.41438508
J3: AUT | K3: Austria | L3: EUR | M3: 0.8932759762 | N3: 0.9068905115
J4: BEL | K4: Belgium | L4: EUR | M4: 0.8932759762 | N4: 0.9068905115
J5: CAN | K5: Canada | L5: CAD | M5: 1.326853991 | N5: 1.309817672
J6: CHE | K6: Switzerland | L6: CHF | M6: 0.9938409925 | N6: 1.049549103
J7: CHL | K7: Chile | L7: CLP | M7: 702.8973999 | N7: 622.5587769
J8: COL | K8: Colombia | L8: COP | M8: 3280.831543 | N8: 2880.344482
J9: CZE | K9: Czech Republic | L9: CZK | M9: 22.93224907 | N9: 22.51070595
J10: DEU | K10: Germany | L10: EUR | M10: 0.8932759762 | N10: 0.9068905115
J11: DNK | K11: Denmark | L11: DKK | M11: 6.669446945 | N11: 6.777684212
J12: ESP | K12: Spain | L12: EUR | M12: 0.8932759762 | N12: 0.9068905115
J13: EST | K13: Estonia | L13: EUR | M13: 0.8932759762 | N13: 0.9068905115
J14: FIN | K14: Finland | L14: EUR | M14: 0.8932759762 | N14: 0.9068905115
J15: FRA | K15: France | L15: EUR | M15: 0.8932759762 | N15: 0.9068905115
J16: GBR | K16: United Kingdom | L16: GBP | M16: 0.7834450006 | N16: 0.7848784924
J17: GRC | K17: Greece | L17: EUR | M17: 0.8932759762 | N17: 0.9068905115
J18: HUN | K18: Hungary | L18: HUF | M18: 290.6600037 | N18: 272.6069031
J19: IRL | K19: Ireland | L19: EUR | M19: 0.8932759762 | N19: 0.9068905115
J20: ISL | K20: Iceland | L20: ISK | M20: 122.6067734 | N20: 110.0135727
J21: ISR | K21: Israel | L21: ILS | M21: 3.564527035 | N21: 3.671401978
J22: ITA | K22: Italy | L22: EUR | M22: 0.8932759762 | N22: 0.9068905115
J23: JPN | K23: Japan | L23: JPY | M23: 109.0096664 | N23: 111.2207108
J24: KOR | K24: Korea | L24: KRW | M24: 1165.498901 | N24: 1146.26001
J25: LTU | K25: Lithuania | L25: EUR | M25: 0.8932759762 | N25: 0.9068905115
J26: LUX | K26: Luxembourg | L26: EUR | M26: 0.8932759762 | N26: 0.9068905115
J27: LVA | K27: Latvia | L27: EUR | M27: 0.8932759762 | N27: 0.9068905115
J28: MEX | K28: Mexico | L28: MXN | M28: 19.26363373 | N28: 17.22224426
J29: NLD | K29: Netherlands | L29: EUR | M29: 0.8932759762 | N29: 0.9068905115
J30: NOR | K30: Norway | L30: NOK | M30: 8.800000191 | N30: 8.156421661
J31: NZL | K31: New Zealand | L31: NZD | M31: 1.517874956 | N31: 1.486772656
J32: POL | K32: Poland | L32: PLN | M32: 3.839375019 | N32: 3.756179333
J33: PRT | K33: Portugal | L33: EUR | M33: 0.8932759762 | N33: 0.9068905115
J34: SVK | K34: Slovak Republic | L34: EUR | M34: 0.8932759762 | N34: 0.9068905115
J35: SVN | K35: Slovenia | L35: EUR | M35: 0.8932759762 | N35: 0.9068905115
J36: SWE | K36: Sweden | L36: SEK | M36: 9.458349228 | N36: 9.661040306
J37: TUR | K37: Turkey | L37: TRY | M37: 5.673819065 | N37: 4.573006153
J38: USA | K38: United States | L38: USD | M38: 1 | N38: 1
J39: CRI | K39: Costa Rica | L39: CRC | M39: 587.2946167 | N39: =M39 -> 587.2946167
J40: BRA | K40: Brazil | L40: BRL | M40: 3.927341938 | N40: 2.989982128
J41: CHN | K41: China (People’s Republic of) | L41: CNY | M41: 6.9083848 | N41: 6.898507595
J42: IND | K42: India | L42: INR | M42: 70.41996765 | N42: 66.86077118
J43: IDN | K43: Indonesia | L43: IDR | M43: 14147.6709 | N43: 13659.60059
J44: RUS | K44: Russia | L44: RUB | M44: 64.73765564 | N44: 57.60373688
J45: ZAF | K45: South Africa | L45: ZAR | M45: 14.4484272 | N45: 12.61087036
J46: ARG | K46: Argentina | L46: ARS | M46: 48.147892 | N46: 32.53107834

Sheet selection lists
A1: Type of measure | C1: Sub-type of measure | E1: Scope | H1: Sector | J1: Yes/No | L1: Environmental focus 1 | N1: Positive/Negative/Indeterminate
A2: Policy | C2: Tax reduction / other subsidy | E2: Sectoral | H2: Energy | J2: No | L2: Climate | N2: Indeterminate
A3: Fiscal | C3: Grant/Loan (including interest-free loans) | E3: Economy-wide | H3: Surface transport | J3: Yes | L3: Air Pollution | N3: Mixed
A4: Monetary | C4: Regulatory change | E4: City/regional | H4: Multiple or n.a. | J4: n/a | L4: Biodiversity | N4: Negative
C5: Other or not specified | E5: Sector-specific | H5: Agriculture | L5: Water | N5: Positive
C6: Skills training | H6: Industry | L6: Other
C7: R&D subsidies | H7: Buildings | L7: Waste & recycling
H8: Air transport | L8: Plastics
H9: Forestry | L9: Adaptation
H10: Maritime transport
H11: Waste management
